Cogmind - Beta 17 @@@ ROGUE MODE // 2026.06.23 @ 16:28:21 Player: aoemica Result: Establishing 0b11! Performance ------------- Evolutions (9) 4500 Regions Visited (31) 6200 Robots Destroyed (539) 2695 Value Destroyed (25547) 25547 Prototype IDs (394) 7880 Alien Tech Used (2) 400 Bonus (56962) 56962 TOTAL SCORE: 104184 Bonus ------- Triggered High Security 500 High Alert Combat Kills 6404 Follower Combat Kills 1666 Prayed to X0-1V1 5000 Major X0-1V1 Interference 11350 Entered Garrisons 400 Entered DSFs 500 Aligned with FarCom 300 Met Imprinter 300 Acquired ECA 300 Met Zhirov 300 Met Warlord at Base 500 MAIN.C Attacked Warlord 500 Warlord Defense Kills 3000 Met Warlord at Research 2000 Destroyed MAIN.C Guards 500 Met MAIN.C 5000 Destroyed MAIN.C Shell 5000 Destroyed MAIN.C 10000 Met Warlord at Command 2000 Win 3000 Friendly Fire -1558 Cogmind --------- Core Integrity 1312/1650 Matter 285/300 Energy 2167/2190 System Corruption 36% Temperature Cool (17) Movement Treading (161) Location 0b11 Command Parts ------- > --- POWER (4) -------- Particle Reactor Quantum Reactor Improved Quantum Reactor Improved Quantum Reactor > --- PROPULSION (6) --- Advanced Heavy Treads Improved Heavy Siege Treads Enhanced Armored Heavy Treads > --- UTILITY (11) ----- Advanced Cooling System (fused) Experimental Coolant Injector Huge Storage Unit Experimental Core Analyzer Advanced Phase Shifter Centrium Medium Armor Plating Centrium Medium Armor Plating Experimental Focal Shield (fused) Advanced Component Analysis Suite (fused) High-powered Tractor Beam X0-1V1's Piety Tracker > --- WEAPON (4) ------- Tri-rail Accelerator (fused) Light Antimatter Cannon (fused) Compact Linear Accelerator > --- INVENTORY (25) --- Centrium Heavy Treads Experimental Biometal Medium Treads Experimental Matter Compressor (500) Advanced Kinecellerator Advanced Force Field Vortex Shotgun (31) Vortex Shotgun (15) Latent Energy Streamer Tri-rail Accelerator Light Antimatter Cannon Compact Linear Accelerator Gamma Bomb Array Gamma Bomb Array Vortex Catalyst Activator (8) Ragnarok Missile Launcher Ragnarok Missile Launcher Heavy Scimitar of Distortion Botcube Gamma Refractor Peak State ------------ > --- POWER ------------ Fusion Reactor Quantum Reactor Vortex Chain Reactor > --- PROPULSION ------- Advanced Heavy Treads Centrium Heavy Treads Centrium Heavy Treads > --- UTILITY ---------- Advanced Cooling System Huge Storage Unit Experimental Core Analyzer Advanced Kinecellerator Experimental Phase Shifter Centrium Medium Armor Plating Centrium Medium Armor Plating Experimental Focal Shield Advanced Force Field System Mapper X0-1V1's Piety Tracker > --- WEAPON ----------- Vortex Shotgun Tri-rail Accelerator Compact Linear Accelerator > --- INVENTORY -------- Light Quantum Reactor Improved Quantum Reactor Enhanced Armored Heavy Treads Experimental Matter Compressor Experimental Weapon Shielding Advanced Force Field Hacking Suite Advanced System Shield Advanced Component Analysis Suite High-powered Tractor Beam Transdimensional Reconstructor Vortex Shotgun Latent Energy Streamer Helical Railgun Tri-rail Accelerator Tri-rail Accelerator Gamma Bomb Array Gamma Bomb Array Vortex Catalyst Activator Ragnarok Missile Launcher Ragnarok Missile Launcher [Rating: 234] Favorites ----------- Power Light Nuclear Core Engine Ion Engine Power Core Light Nuclear Core Reactor Vortex Chain Reactor Propulsion Light Treads Treads Light Treads Leg Aluminum Leg Wheel Compact Wheel Utility X0-1V1's Piety Tracker Device X0-1V1's Piety Tracker Storage Huge Storage Unit Processor Experimental Core Analyzer Hackware System Mapper Protection Centrium Medium Armor Plating Weapon Tri-rail Accelerator Energy Gun Vortex Shotgun Energy Cannon Cooled Particle Cannon Ballistic Gun Gauss Rifle Ballistic Cannon Tri-rail Accelerator Launcher Gamma Bomb Array Impact Weapon Power Maul Slashing Weapon Mining Claw Piercing Weapon Heavy Pick Special Melee Weapon Chaos Jack Build | -11 -10 -10 -10 -9 -8 -8 -7 -7 -7 -7 -7 -7 -6 -6 -6 -5 -5 -5 -5 -5 -5 -4 -4 -4 -4 -4 -3 -3 -2 -1 -1 ------- Run | Yrd Mat Min Exi Min Mat Gar Fac Gar Fac Low Low Zio Pro Fac DSF Fac Was Fac Upp Upp War Pro Fac Upp Upp Zhi Pro Res Res Acc Com Slots Evolved 18 | . . . . . 4 . 2 . . . . . . 2 . 2 . . . . . . 2 . . . . 2 2 2 . Power 2 | . . . . . . . . . . . . . . . . . . . . . . . . . . . . 1 . 1 . Propulsion 5 | . . . . . 1 . 1 . . . . . . 1 . 1 . . . . . . 1 . . . . . . . . Utility 9 | . . . . . 1 . 1 . . . . . . 1 . 1 . . . . . . 1 . . . . 1 2 1 . Weapon 2 | . . . . . 2 . . . . . . . . . . . . . . . . . . . . . . . . . . Parts Attached 263 | 1 12 3 1 2 8 16 2 30 39 17 7 3 3 . 9 9 12 20 2 3 16 4 8 . 1 4 1 2 6 12 10 Power 53 | . 2 . . . 1 3 1 5 15 5 . 1 . . 2 1 3 4 . . 1 . . . . . . 1 2 3 3 Engine 14 | . 2 . . . . 1 1 . 2 3 . 1 . . 1 1 . 2 . . . . . . . . . . . . . Core 25 | . . . . . 1 2 . 5 13 2 . . . . . . . 2 . . . . . . . . . . . . . Reactor 14 | . . . . . . . . . . . . . . . 1 . 3 . . . 1 . . . . . . 1 2 3 3 Propulsion 55 | . 2 1 . . 4 5 . 8 10 4 3 . . . 2 3 4 3 . 1 3 . . . . . . . 1 . 1 Treads 52 | . 2 1 . . 4 5 . 8 10 4 3 . . . 2 1 3 3 . 1 3 . . . . . . . 1 . 1 Leg . | . . . . . . . . . . . . . . . . . . . . . . . . . . . . . . . . Wheel 3 | . . . . . . . . . . . . . . . . 2 1 . . . . . . . . . . . . . . Hover . | . . . . . . . . . . . . . . . . . . . . . . . . . . . . . . . . Flight . | . . . . . . . . . . . . . . . . . . . . . . . . . . . . . . . . Utility 73 | 1 3 . 1 . 1 2 1 7 3 1 1 . 1 . 2 3 3 9 1 2 9 3 5 . 1 4 1 1 1 4 2 Device 45 | 1 1 . . . 1 2 1 6 1 . . . 1 . . 2 2 5 1 2 7 2 1 . 1 2 1 1 1 1 2 Storage 7 | . 2 . 1 . . . . . 1 . . . . . . . 1 . . . 1 . . . . 1 . . . . . Processor 8 | . . . . . . . . . . 1 . . . . 2 . . 1 . . 1 1 2 . . . . . . . . Hackware 4 | . . . . . . . . . . . . . . . . . . 1 . . . . 1 . . . . . . 2 . Protection 9 | . . . . . . . . 1 1 . 1 . . . . 1 . 2 . . . . 1 . . 1 . . . 1 . Artifact . | . . . . . . . . . . . . . . . . . . . . . . . . . . . . . . . . Weapon 82 | . 5 2 . 2 2 6 . 10 11 7 3 2 2 . 3 2 2 4 1 . 3 1 3 . . . . . 2 5 4 Energy Gun 14 | . . . . . 2 . . 4 3 2 . 1 . . . . . . . . 1 . . . . . . . . 1 . Energy Cannon 9 | . 2 1 . . . . . . 2 1 . . . . . 1 1 . . . 1 . . . . . . . . . . Ballistic Gun 26 | . 1 . . . . 3 . 4 4 4 3 . 1 . 3 . . 2 . . . . . . . . . . 1 . . Ballistic Cannon 14 | . 1 . . . . . . . . . . 1 . . . 1 . 2 1 . 1 1 1 . . . . . 1 2 2 Launcher 10 | . . . . 2 . 2 . . 1 . . . 1 . . . 1 . . . . . . . . . . . . 2 1 Special Weapon . | . . . . . . . . . . . . . . . . . . . . . . . . . . . . . . . . Impact Weapon 1 | . . . . . . . . . 1 . . . . . . . . . . . . . . . . . . . . . . Slashing Weapon 6 | . 1 1 . . . 1 . 1 . . . . . . . . . . . . . . 1 . . . . . . . 1 Piercing Weapon 1 | . . . . . . . . 1 . . . . . . . . . . . . . . . . . . . . . . . Special Melee Weapon 1 | . . . . . . . . . . . . . . . . . . . . . . . 1 . . . . . . . . Unidentified Prototypes 35 | . 1 . . . . . . . 3 . . 1 . . . 1 1 6 . 1 9 2 2 . . 4 . . 2 1 1 Corrupted Parts 10 | . . . . . . . . . . . 3 . . . . . . 2 . 1 2 2 . . . . . . . . . System Corruption 56 | . . . . . . . . . . . 10 . . . . . . 7 . 3 16 20 . . . . . . . . . Parts Lost 63 | . . . . 1 . 3 . 9 11 15 4 . . . 1 4 . 6 . 1 4 . . . . . . . . 2 2 Power 17 | . . . . . . 1 . 2 5 4 . . . . . 1 . 3 . 1 . . . . . . . . . . . Propulsion 14 | . . . . . . . . 2 3 3 4 . . . 1 1 . . . . . . . . . . . . . . . Utility 15 | . . . . . . . . 3 . 2 . . . . . 1 . 1 . . 4 . . . . . . . . 2 2 Weapon 17 | . . . . 1 . 2 . 2 3 6 . . . . . 1 . 2 . . . . . . . . . . . . . Highest Loss Streak 12 | . . . . 1 . 2 . 6 5 12 3 . . . 1 4 . 3 . 1 2 . . . . . . . . 1 2 To Critical Strikes . | . . . . . . . . . . . . . . . . . . . . . . . . . . . . . . . . Average Backups 18 | 6 10 14 15 16 16 19 19 19 22 21 11 17 16 16 19 20 19 18 19 19 18 19 19 18 19 19 19 19 20 20 20 Power . | 1 1 2 2 2 1 1 2 1 1 1 . . . . . . . . . . . . . 1 1 1 2 1 1 1 . Propulsion 2 | 4 3 3 3 3 4 5 4 4 4 2 . . . . 1 2 2 2 3 2 2 2 1 2 2 2 2 2 1 1 3 Utility 7 | . 1 3 2 4 4 6 7 8 9 9 5 8 7 7 6 6 6 6 7 7 8 9 8 8 8 8 9 10 9 6 5 Weapon 7 | 1 4 6 7 7 5 5 5 5 6 9 6 8 9 9 10 11 11 9 8 8 7 7 7 7 7 6 5 5 7 10 10 Tool/Special . | . . . . . . . . . . . . . . . . . . . . . . . . . . . . . . . . Unused Backups 71 | . 5 . 1 . 3 5 . 6 3 1 1 1 . . 3 2 6 11 . 1 3 2 2 1 . . . . 1 1 12 Power 11 | . 2 . . . . 1 . . . . . . . . . . . . . . . . 2 . . . . . . 1 5 Propulsion 12 | . . . . . 3 . . . 1 . . . . . . 1 1 1 . . . . . . . . . . . . 5 Utility 28 | . 1 . 1 . . 3 . 5 1 . 1 1 . . 2 1 2 3 . 1 1 2 . 1 . . . . 1 . 1 Weapon 20 | . 2 . . . . 1 . 1 1 1 . . . . 1 . 3 7 . . 2 . . . . . . . . . 1 Tool/Special . | . . . . . . . . . . . . . . . . . . . . . . . . . . . . . . . . Average Slot Usage (%) 84 | . 99 99 85 84 91 99 99 98 93 88 62 71 98 86 98 99 92 76 66 73 69 76 70 73 73 72 72 75 76 79 83 Engine 3 | . 14 14 14 14 11 6 1 2 1 3 . 3 7 6 6 10 . . 5 3 . . . . . . . . . . . Core 4 | . . . . . . 11 13 12 13 9 7 10 7 6 2 . . . . 5 1 . . . . . . . . . . Reactor 3 | . . . . . . . . . . . . . . . 3 . 10 9 . . 3 5 5 5 5 5 5 9 8 12 16 Treads 19 | . 19 28 28 28 27 27 30 29 24 25 19 23 23 20 24 18 7 16 16 16 12 17 14 15 15 15 15 14 13 12 12 Device 15 | . 14 14 14 14 16 18 22 19 14 11 7 7 13 13 6 13 16 15 10 9 14 17 13 15 15 14 14 14 20 23 21 Storage 6 | . 14 14 14 14 9 9 7 7 7 7 3 7 7 6 6 5 5 5 5 5 5 5 5 5 5 5 5 4 4 4 4 Processor 4 | . . . . . . . . . . 2 7 7 7 6 18 11 11 11 11 11 10 5 7 5 5 5 5 4 4 4 4 Hackware 1 | . . . . . . . . . . . . . . . . . . . . . . . 3 5 5 5 5 4 4 6 5 Protection 1 | . . . . . . . . 1 . . . . . . . 2 . . . 1 1 5 4 5 5 5 . 3 4 4 8 Energy Gun 2 | . 1 . . . 7 . . 12 . 4 . 3 . . . . . . . . 2 5 2 4 5 5 5 4 1 . . Energy Cannon 4 | . 9 14 . 8 14 7 . . 5 4 . . . . . 1 20 6 4 4 4 4 . . . . 4 4 4 . . Ballistic Gun 8 | . 11 12 . 4 . 17 23 8 23 17 12 5 29 26 25 15 1 . . 4 2 . . . . . . . 2 3 . Ballistic Cannon 3 | . 3 . . . . . . . . . . . . . . 4 . 4 10 5 4 5 9 9 10 10 10 9 8 8 10 Peak Build Rating 234 | 7 22 22 21 22 31 45 48 51 70 68 59 68 65 64 83 90 118 134 129 127 162 163 188 192 184 188 189 205 225 234 230 Average Rating 106 | 6 9 21 20 21 26 41 46 46 59 55 39 60 63 64 78 80 98 120 126 119 134 160 184 187 183 183 188 204 219 225 224 On Entrance 99 | 6 7 22 21 21 22 31 45 48 45 63 53 59 61 64 64 83 81 114 125 127 107 162 163 187 184 184 188 189 205 221 223 Avg Prop Armor Cover (%) 19 | . . . . . . . . . 5 . 34 . . . . 17 14 . . 8 9 . . . . . . . . . 8 Naked Turns . | . . . . . . . . . . . . . . . . . . . . . . . . . . . . . . . . Heaviest Build 227 | 13 36 36 48 50 63 65 71 71 121 117 78 84 87 83 124 133 166 153 134 136 164 176 176 174 170 170 173 192 203 227 223 Greatest Support 240 | 20 40 40 40 40 60 63 83 83 116 112 82 80 80 80 100 120 200 220 220 220 187 187 240 240 240 240 240 240 240 230 230 Greatest Overweight (x) 8 | . . . 1 1 1 1 . 1 1 1 2 1 1 1 1 8 4 . . 1 1 1 . . . . . . . . 1 Average Overweight (x) . | . . . . 1 . . . . . . . . . 1 . 3 2 . . . . . . . . . . . . . . Largest Inventory Capacity 25 | 8 15 15 20 20 20 20 20 20 25 25 20 20 20 20 25 25 25 25 25 25 25 25 25 25 25 25 25 25 25 25 25 Average Capacity 22 | 8 11 15 16 20 20 20 20 20 23 23 13 20 20 20 23 25 25 25 25 25 25 25 25 25 25 25 25 25 25 25 25 Most Carried 25 | 6 15 15 17 17 20 20 20 20 25 25 20 20 20 19 25 25 25 25 25 25 25 25 25 25 25 25 25 25 25 25 25 Average Carried 21 | 6 10 14 15 16 16 19 19 19 23 21 12 19 19 19 22 23 24 24 24 24 24 24 24 24 25 24 24 24 24 24 23 Final Capacity 25 | 8 15 15 20 20 20 20 20 20 25 20 20 20 20 20 25 25 25 25 25 25 25 25 25 25 25 25 25 25 25 25 25 Final Carried 25 | 6 15 15 17 16 20 20 20 20 23 20 20 20 19 19 24 25 25 23 25 25 25 25 24 25 25 25 25 25 25 25 25 Class Distribution -------------------- 17% | Hacker-Tank 15% | Scavenger-Skirmisher 13% | Scavenger-Gunner 12% | Mutant 12% | Scavenger-Tank 10% | Tank 8% | Generator-Tank 3% | Scavenger-Mutant Dominant Class ---------------- Mutant | -10/Materials Mutant | -10/Mines Mutant | -10/Exiles Mutant | -9/Mines Skirmisher | -8/Materials Scavenger-Skirmisher | -8/Garrison Scavenger-Skirmisher | -7/Factory Scavenger-Skirmisher | -7/Garrison Scavenger-Tank | -7/Factory Scavenger-Tank | -7/Lower Caves Scavenger-Gunner | -7/Lower Caves Scavenger-Gunner | -7/Zion Scavenger-Gunner | -6/Proximity Caves Scavenger-Skirmisher | -6/Factory Scavenger-Gunner | -6/DSF Scavenger-Gunner | -5/Factory Scavenger-Tank | -5/Waste Scavenger-Skirmisher | -5/Factory Gunner | -5/Upper Caves Tank | -5/Upper Caves Commander-Tank | -5/Warlord Tank | -4/Proximity Caves Hacker-Tank | -4/Factory Hacker-Tank | -4/Upper Caves Hacker-Tank | -4/Upper Caves Hacker-Tank | -4/Zhirov Hacker-Tank | -3/Proximity Caves Hacker-Tank | -3/Research Hacker-Tank | -2/Research Generator-Tank | -1/Access Generator-Tank | -1/Command Resources | -11 -10 -10 -10 -9 -8 -8 -7 -7 -7 -7 -7 -7 -6 -6 -6 -5 -5 -5 -5 -5 -5 -4 -4 -4 -4 -4 -3 -3 -2 -1 -1 ----------- Run | Yrd Mat Min Exi Min Mat Gar Fac Gar Fac Low Low Zio Pro Fac DSF Fac Was Fac Upp Upp War Pro Fac Upp Upp Zhi Pro Res Res Acc Com Matter Collected 22439 | 234 326 88 80 188 531 903 . 1141 3285 543 196 103 552 18 779 544 586 1041 245 1022 1334 279 1084 369 20 51 373 343 1341 2551 2289 Remotely 4621 | . . . . . . . . . . . . . . . . . . 328 . 282 66 . 417 . . . 130 155 188 2161 894 Salvage Created 26826 | 147 619 366 . 135 608 1364 . 1002 4135 433 . 12 607 18 960 1233 1511 2138 377 477 1296 892 1161 248 . 51 255 284 805 3440 2252 Parts 1032 | 14 37 16 . 7 34 72 . 48 181 19 . 4 34 . 23 40 24 62 10 23 53 32 40 14 . . 14 19 18 146 48 Haulers Intercepted 20 | . 2 . . . 1 . . . 6 . . . . . . 1 . 2 . . . . . . . . . 1 2 5 . Recyclers Shooed 16 | . . 1 . 2 . . . . 2 . . . . . . . . 6 . . . . . . . . . 1 . 4 . Parts Field Recycled . | . . . . . . . . . . . . . . . . . . . . . . . . . . . . . . . . Retrieved Matter . | . . . . . . . . . . . . . . . . . . . . . . . . . . . . . . . . Parts Self-Destructed 96 | . . . . . . . . . . 17 . . 22 . . . . . 9 13 . 20 . 1 . . 14 . . . . Prevented 43 | . . . . . . . . . . 4 2 . 9 . . . . . . . . 13 . 15 . . . . . . . Parts Restored . | . . . . . . . . . . . . . . . . . . . . . . . . . . . . . . . . Kills | -11 -10 -10 -10 -9 -8 -8 -7 -7 -7 -7 -7 -7 -6 -6 -6 -5 -5 -5 -5 -5 -5 -4 -4 -4 -4 -4 -3 -3 -2 -1 -1 ------- Run | Yrd Mat Min Exi Min Mat Gar Fac Gar Fac Low Low Zio Pro Fac DSF Fac Was Fac Upp Upp War Pro Fac Upp Upp Zhi Pro Res Res Acc Com Combat Hostiles Destroyed 390 | . 10 6 . 8 7 25 . 28 56 11 . . 14 . 10 11 6 24 9 10 23 19 15 3 . . 8 4 8 52 23 Melee 2 | . . . . 1 . . . . 1 . . . . . . . . . . . . . . . . . . . . . . Guns 117 | . 6 2 . 1 1 10 . 13 35 9 . . 10 . 7 11 . . . 3 1 1 . . . . 1 . . 3 3 Cannons 164 | . 4 4 . 1 6 9 . . 6 . . . . . . . 3 21 9 6 10 14 11 . . . 7 4 8 30 11 AOE 71 | . . . . 5 . 6 . 13 13 1 . . 3 . 2 . . . . . 6 . . . . . . . . 13 9 Classes Destroyed 29 | 2 9 1 . 1 1 5 . . 2 1 . 1 . . . . 1 1 1 . 2 1 . . . . . . . . . Worker 36 | . 3 . . . 1 . . . 14 . . . . . . 2 . 1 . . . . 1 . . . . . 1 11 2 Builder 23 | . 1 . . . . . . . 6 . . . . . . 1 . 1 . . . . 2 . . . . 1 . 11 . Tunneler 7 | 4 . 1 . . 1 . . . . . . . . . . . . . . . . . 1 . . . . . . . . Hauler 20 | . 2 . . . 1 . . . 6 . . . . . . 1 . 2 . . . . . . . . . 1 2 5 . Recycler 31 | 1 2 2 . . 1 . . . 11 . . . . . . 3 . 5 . . . . 2 . . . . . 1 . 3 Mechanic 9 | . 1 . . . . . . . 3 . . . . . . 1 . 1 . . . . 1 . . . . . 1 1 . Operator 8 | . 1 . . . 1 . . . 2 . . . . 1 . . . . . . . . 1 . . . . 1 1 . . Drone 2 | . . . . . . . . . . . . . . . . . . . . . . 2 . . . . . . . . . Watcher 11 | . 1 . . . 1 . . . 5 . . . . . . 1 . . . . . . . . . . . 1 . 1 1 Swarmer 75 | . 6 . . 4 . 3 . 12 1 6 . . 6 . 4 . . . 3 . 1 5 . . . . 6 . . 13 5 Grunt 145 | . 1 4 . 3 2 10 . 7 37 4 . . 5 . 6 9 . 7 5 4 8 6 7 . . . 1 . 4 12 3 Brawler 13 | . . . . 1 . 1 . . 6 . . . . . . . . . 1 . 2 2 . . . . . . . . . Duelist 10 | . . . . . . 2 . . 1 . . . 1 . . 1 . 1 . . 1 2 . . . . . . . 1 . Protector 6 | . . . . . . . . . 1 . . . . . . . . 1 . . 2 1 . . . . . . . . 1 Sentry 35 | . . . . . 5 5 . 9 2 . . . 1 . . . . 1 . 1 . 1 . . . . 1 . 1 6 2 Demolisher 3 | . . . . . . . . . 1 . . . . . . . . . . . 1 . . . . . . . 1 . . Specialist 14 | . . . . . . 1 . . . . . . . . . . . 7 . . 1 . 1 . . . . . . . 4 Hunter 30 | . . . . . . 1 . . 3 . . . . . . . . 3 . . 3 . 3 3 . . . . . 10 4 Programmer 30 | . . . . . . 2 . . 5 . . . 1 . . 1 . 3 . 1 1 . 3 . . . . 4 . 8 1 Heavy 5 | . . . . . . . . . . . . . . . . . . 1 . . . . 1 . . . . . . 1 2 Behemoth 3 | . . . . . . . . . . 1 . . . . . . . . . . 1 . . . . . . . . 1 . Compactor 6 | . . . . . . . . . . . . . . . . . 6 . . . . . . . . . . . . . . Striker 3 | . . . . . . . . . . . . . . . . . . . . . 1 . . . . . . . 2 . . Executioner 1 | . . . . . . . . . . . . . . . . . . . . . 1 . . . . . . . . . . Subdweller 3 | . 3 . . . . . . . . . . . . . . . . . . . . . . . . . . . . . . Scrapper 1 | . . . . . . 1 . . . . . . . . . . . . . . . . . . . . . . . . . Zionite 1 | . . . . . . . . . . . . 1 . . . . . . . . . . . . . . . . . . . Samaritan 1 | . . . . . . . . . . . . . . . . . . . 1 . . . . . . . . . . . . Assembled 2 | . . 2 . . . . . . . . . . . . . . . . . . . . . . . . . . . . . Thug 5 | . . . . . . . . . . . . . . . . . . 1 . 4 . . . . . . . . . . . Butcher 1 | . . . . . . . . . . . . . . . . . . . . . . . . . . . . . . . 1 Martyr 1 | . . . . . . . . . . . . . . . . . . 1 . . . . . . . . . . . . . Best Kill Streak 19 | 3 8 5 . 3 2 4 . 7 13 4 . . 5 1 4 8 2 12 3 4 12 5 10 2 . . 5 3 5 19 7 Combat Bots Only 14 | . 6 4 . 3 2 4 . 7 11 4 . . 5 . 4 6 2 8 3 4 12 5 9 2 . . 5 3 5 14 5 Max Kills in Single Turn 6 | 1 1 1 . 1 1 3 . 4 4 2 . 1 3 1 2 3 1 2 2 2 3 2 3 1 . . 3 2 1 6 5 Gunslinging 2 | . . . . . . . . . 1 1 . . 2 . 1 . . . . . . . . . . . . . . . . Exploded 6 | . . . . 1 . 2 . 4 4 1 . . 3 . 1 . . . . . 2 . . . . . . . . 6 4 Melee 1 | . . . . 1 . . . . 1 . . . . . . . . . . . . . . . . . . . . . . Uniques/NPCs Destroyed 1 | . . . . . . . . . . . . . . . . . . . . . . . . . . . . . . . 1 MAIN.C Shell (-1/Command) Combat | -11 -10 -10 -10 -9 -8 -8 -7 -7 -7 -7 -7 -7 -6 -6 -6 -5 -5 -5 -5 -5 -5 -4 -4 -4 -4 -4 -3 -3 -2 -1 -1 -------- Run | Yrd Mat Min Exi Min Mat Gar Fac Gar Fac Low Low Zio Pro Fac DSF Fac Was Fac Upp Upp War Pro Fac Upp Upp Zhi Pro Res Res Acc Com Hostile Shots Fired 2260 | . 42 18 . 23 9 73 . 399 242 134 35 . 52 . 40 61 . 309 19 47 109 37 67 29 . . 23 29 3 312 148 Missed 772 | . 13 9 . 8 7 22 . 153 74 24 13 . 17 . 16 15 . 90 7 14 44 17 26 15 . . 13 15 2 109 49 Hits 1488 | . 29 9 . 15 2 51 . 246 168 110 22 . 35 . 24 46 . 219 12 33 65 20 41 14 . . 10 14 1 203 99 Melee 17 | . . 3 . . . 3 . 5 . . . . . . . . . . . . 4 2 . . . . . . . . . Projectile 1471 | . 29 6 . 15 2 48 . 241 168 110 22 . 35 . 24 46 . 219 12 33 61 18 41 14 . . 10 14 1 203 99 AOE 11 | . . . . . . . . 1 5 . . . . . . . . . . . 2 . . . . . . . 1 . 2 Critical Strikes 57 | . . . . . . 3 . 1 6 5 1 . 1 . 3 4 . 4 1 2 7 . 2 1 . . 1 2 . 6 7 Actively Blocked 1 | . . . . . . . . . . . . . . . . . . . . . . . . . . . . . . . 1 Part Disruptions 3 | . . . . . . . . . . . . . . . . . . . . . . . . . . . . . . 1 2 Damage Taken 19820 | . 364 151 . 147 29 789 . 1991 2664 2235 311 . 422 . 439 884 . 3249 195 413 1222 300 432 115 . . 100 161 73 1630 1504 Core 1794 | . 54 12 . 24 15 140 . 212 258 288 73 . 41 . 102 38 . 119 . 32 153 . 17 . . . 11 . . 112 93 Absorbed by Shields 4720 | . . . . . . 18 . 14 . . . . 112 . . . . 314 . 183 351 131 447 123 . . 101 168 76 1716 966 Reduced by Siege Mode 625 | . . . . . . . . . 46 50 . . . . . . . 266 . 13 . 2 56 . . . . 24 . 25 143 Redirected to Shielding 152 | . . . . . . . . . . . . . . . . . . . . . . . . . . . . . . . 152 Ignored by Resistances 2827 | . . . . . . 51 . 151 88 175 34 . 34 . 8 . . 114 10 26 77 7 53 33 . . 18 . . 1234 714 Regen/Repaired (Parts) 292 | . . . . . . . . . . . . 42 . . . . 67 . . . 92 . . . . . . . 91 . . Core Remaining (%) 84 | 100 . . . 80 . 76 . . . . . . 46 . 88 . . . . . . 83 . . . . 97 100 100 . 79 Volleys Fired 1111 | 10 57 17 . 16 24 67 . 58 174 39 . 1 18 1 15 33 14 83 20 27 57 34 31 13 . . 15 18 35 103 131 Largest 4 | 2 2 2 . 1 3 3 . 4 4 4 . 4 4 4 4 4 4 3 3 3 3 3 2 1 . . 3 2 3 4 3 Hottest 216 | 70 100 88 . 68 192 166 . 193 153 176 . 111 111 106 120 134 185 135 150 118 155 155 120 80 . . 178 118 156 216 180 Shots Fired 2541 | 20 85 30 . 17 58 155 . 168 604 117 . 4 55 4 42 114 56 133 41 58 72 48 53 13 . . 28 31 68 257 210 Gun 1244 | 20 49 16 . 2 14 79 . 155 484 99 . 4 51 4 36 82 . 1 1 15 5 3 . . . . 3 . 18 78 25 Cannon 1141 | . 36 14 . 6 43 62 . . 95 18 . . . . . 32 56 127 40 43 58 42 47 4 . . 25 31 50 165 147 Launcher 156 | . . . . 9 1 14 . 13 25 . . . 4 . 6 . . 5 . . 9 3 6 9 . . . . . 14 38 Special . | . . . . . . . . . . . . . . . . . . . . . . . . . . . . . . . . Kinetic 1695 | 10 36 16 . 2 . 79 . 86 466 57 . 4 51 4 36 108 . 59 25 31 43 24 47 4 . . 25 31 66 238 147 Thermal 614 | 10 49 14 . 6 52 62 . 69 113 35 . . . . . 6 56 69 16 27 12 18 . . . . . . . . . Explosive 73 | . . . . 9 1 14 . 13 25 . . . . . . . . . . . . . . . . . . . . 3 8 Electromagnetic 114 | . . . . . 5 . . . . 25 . . 4 . 6 . . 5 . . 12 3 6 9 . . . . . 11 28 Entropic 45 | . . . . . . . . . . . . . . . . . . . . . 5 3 . . . . 3 . 2 5 27 Robot Hit Streak 28 | 4 19 13 . 14 5 14 . 21 19 18 . 3 5 4 7 21 21 28 27 19 10 19 20 1 . . 4 5 16 16 27 Robot Miss Streak 10 | 2 4 2 . 2 5 4 . 4 8 8 . . 5 1 2 5 1 3 2 2 3 9 5 3 . . 4 5 3 10 5 Penetration Max 2 | . . . . . . . . 2 1 . . . . . . . . . . 1 . . . . . . . . 1 2 . Secondary Targets 21 | . 1 . . . . 1 . 2 4 1 . . 6 . 5 1 . . . . . . . . . . . . . . . Max Gunslinging Chain 2 | . 1 . . . . 1 . 1 1 1 . . 2 . 2 1 . . . . . . . . . . . . . . . Shots Hit Robots 1516 | 11 56 21 . 7 33 97 . 97 323 82 . 1 33 2 29 66 48 101 30 31 54 33 35 2 . . 14 17 32 162 99 Core Hits 1159 | 5 22 12 . 15 19 52 . 61 208 25 . 1 26 1 17 53 13 88 20 20 70 46 58 9 . 3 15 15 28 162 95 Critical Kills 13 | . . . . . . 1 . . 2 1 . . . . . . 2 1 . 2 1 . . . . . . . 1 2 . Critical Parts Destroyed 17 | . . . . . . 5 . 4 3 . . . . . . 1 . . . . . . . . . . . . . 2 2 Critical Strikes 52 | 1 1 . . . 1 6 . 7 5 1 . . . . . 1 2 3 2 3 2 . 4 . . . 2 . 2 7 2 Burn 6 | 1 1 . . . 1 . . 3 . . . . . . . . . . . . . . . . . . . . . . . Meltdown 5 | . . . . . . . . . . . . . . . . . 2 1 . 1 1 . . . . . . . . . . Destroy 19 | . . . . . . 6 . 4 3 1 . . . . . 1 . . . 1 . . . . . . . . 1 2 . Blast 16 | . . . . . . . . . . . . . . . . . . 2 2 1 1 . 4 . . . 2 . 1 3 . Smash 2 | . . . . . . . . . 2 . . . . . . . . . . . . . . . . . . . . . . Detonate 4 | . . . . . . . . . . . . . . . . . . . . . . . . . . . . . . 2 2 Melee Attacks 71 | . 3 2 . 1 . 15 . 42 6 . . 1 . . . 1 . . . . . . . . . . . . . . . Impact 8 | . . . . . . . . . 6 . . 1 . . . 1 . . . . . . . . . . . . . . . Slashing 43 | . 3 2 . 1 . 15 . 22 . . . . . . . . . . . . . . . . . . . . . . . Piercing 20 | . . . . . . . . 20 . . . . . . . . . . . . . . . . . . . . . . . Sneak Attacks 4 | . 1 . . 1 . 1 . . 1 . . . . . . . . . . . . . . . . . . . . . . Combat Hostiles 1 | . . . . 1 . . . . . . . . . . . . . . . . . . . . . . . . . . . Follow-up Attacks . | . . . . . . . . . . . . . . . . . . . . . . . . . . . . . . . . Damage Inflicted 68693 | 139 1014 356 . 670 705 2700 . 2786 9024 1760 . 16 1061 30 950 1716 1705 5948 1336 1335 4409 2171 3625 511 . 261 712 1014 1769 11344 9626 Guns 16966 | 139 367 171 . 14 102 748 . 1592 5249 1280 . 16 653 30 595 1365 . 21 . 241 388 84 . . . . 83 . 311 1937 1580 Cannons 31743 | . 579 185 . 62 533 848 . . 761 389 . . . . . 351 1599 4873 1336 1094 2607 1470 2254 . . . 629 980 1386 5591 4216 Explosions 18114 | . . . . 532 48 588 . 1149 2611 91 . . 408 . 355 . 106 967 . . 1414 617 1316 511 . . . . . 3715 3686 Melee 879 | . 44 . . 46 . 516 . 34 239 . . . . . . . . . . . . . . . . . . . . . . Ramming 991 | . 24 . . 16 22 . . 11 164 . . . . . . . . 87 . . . . 55 . . 261 . 34 72 101 144 Kinetic 36979 | 113 285 171 . 14 . 748 . 936 5023 665 . 16 653 30 595 1716 . 3360 982 975 2359 1313 2254 . . . 629 980 1697 7249 4216 Thermal 10183 | 26 661 185 . 62 605 848 . 656 1327 722 . . 84 . . . 1705 1534 354 360 287 157 142 . . . . . . 222 246 Explosive 9293 | . . . . 532 48 588 . 1149 2271 . . . . . . . . 75 . . . . 369 . . . . . . 2154 2107 Electromagnetic 6625 | . . . . . 30 . . . . 373 . . 324 . 355 . . 892 . . 1375 617 805 511 . . . . . 1339 4 Impact 239 | . . . . . . . . . 239 . . . . . . . . . . . . . . . . . . . . . . Slashing 606 | . 44 . . 46 . 516 . . . . . . . . . . . . . . . . . . . . . . . . . Piercing 34 | . . . . . . . . 34 . . . . . . . . . . . . . . . . . . . . . . . Entropic 3743 | . . . . . . . . . . . . . . . . . . . . . 388 84 . . . . 83 . . 279 2909 Highest Corruption 40 | . 3 3 3 3 . 3 . . 40 40 40 36 . . . 2 . 13 13 16 16 23 1 2 2 . 8 3 . 7 36 Average Corruption 12 | . 2 3 3 3 . 2 . . 34 40 32 36 . . . 1 . 4 13 13 7 3 1 1 2 . 5 1 . 4 9 Corruption Purged 2 | . . . . . . . . . . . . . . . . 2 . . . . . . . . . . . . . . . Corruption Blocked . | . . . . . . . . . . . . . . . . . . . . . . . . . . . . . . . . Effects 536 | . 33 10 11 15 . 19 . . 123 79 23 4 . . . 4 . 19 21 27 11 11 5 2 . . 8 5 . 23 83 Message Errors 145 | . 7 4 3 6 . 2 . . 35 18 6 . . . . 2 . 6 11 10 4 1 1 1 . . 3 . . 7 18 Matter Fused 116 | . 7 . 5 6 . 5 . . 27 11 6 1 . . . . . 4 1 8 2 1 3 1 . . 3 . . 5 20 Heat Flow Errors 43 | . 2 1 1 . . 3 . . 12 4 2 . . . . 1 . 2 3 . 1 2 . . . . . 1 . . 8 Energy Discharges 66 | . 7 1 1 . . 2 . . 10 12 3 1 . . . . . 3 2 2 1 4 . . . . 1 2 . 2 12 Parts Rejected 7 | . 1 1 . . . . . . 4 . . . . . . . . . . . . . . . . . . . . 1 . Parts Fused 4 | . 1 . . . . . . . . 1 . . . . . . . . . 1 . . . . . . . . . . 1 Data Loss (minor) 61 | . 5 1 1 1 . 4 . . 6 10 2 . . . . . . 3 2 4 2 3 1 . . . . 2 . 3 11 Data Loss (major) 23 | . 1 1 . 1 . 2 . . 3 6 1 1 . . . 1 . . . 2 . . . . . . . . . 1 3 Misfires 16 | . 1 . . 1 . 1 . . 5 3 . . . . . . . . 1 . . . . . . . . . . 2 2 Alerts 16 | . 1 . . . . . . . 2 3 1 1 . . . . . . 1 . . . . . . . 1 . . 2 4 Misdirections 2 | . . . . . . . . . . . 2 . . . . . . . . . . . . . . . . . . . . Weapon Failures 37 | . . 1 . . . . . . 19 11 . . . . . . . 1 . . 1 . . . . . . . . . 4 Overload Shots 2 | . . . . . . . . . 1 . . . . . . . . . . . 1 . . . . . . . . . . Overflow Damage 1226 | . . . . 10 1 84 . . 118 . . . . . . . 33 143 79 6 19 31 89 . . 18 1 9 19 247 319 Projectiles 466 | . . . . . . 46 . . 25 . . . . . . . . 120 79 6 19 31 53 . . . 1 7 13 66 . Explosions 627 | . . . . 10 . . . . 32 . . . . . . . 33 23 . . . . 36 . . . . . . 174 319 Melee 133 | . . . . . 1 38 . . 61 . . . . . . . . . . . . . . . . 18 . 2 6 7 . Knockbacks 159 | . 2 . . . . . . . 1 . . . . . . 6 . 28 2 4 14 13 11 . . . 7 12 8 35 16 Impact 5 | . . . . . . . . . 1 . . . . . . . . . . . . . . . . . . 1 1 . 2 Kinetic 139 | . 2 . . . . . . . . . . . . . . 5 . 26 2 3 14 10 10 . . . 7 10 7 30 13 Secondary 15 | . . . . . . . . . . . . . . . . 1 . 2 . 1 . 3 1 . . . . 1 . 5 1 Self-Inflicted Damage 499 | . . . . 17 . . . . 153 45 . . . . . . . 85 . . 8 . 11 16 . . . . . 22 142 Shots 21 | . . . . 1 . . . . 6 1 . . . . . . . 3 . . 1 . 1 2 . . . . . 2 4 Rammed 68 | . 3 . . 6 2 . . 2 12 . . . . . . . . 6 . . . . 1 . . 24 . 2 2 4 4 Targets Rammed 77 | . 5 . . 6 2 . . 2 15 . . . . . . . . 6 . . . . 1 . . 24 . 2 4 6 4 Kicked 1 | . 1 . . . . . . . . . . . . . . . . . . . . . . . . . . . . . . Crushed 8 | . 1 . . . . . . . 3 . . . . . . . . . . . . . . . . . . . 2 2 . Highest Temperature 364 | 63 250 172 236 112 261 249 . 252 290 280 323 51 236 36 113 204 48 237 271 282 86 185 174 . . . 66 206 84 297 364 Average Temperature 70 | 26 51 68 140 38 61 69 . 78 80 84 138 28 88 21 42 51 20 35 123 97 35 90 83 . . . 24 118 29 80 113 Received Heat Transfer 4479 | . 66 30 . 24 18 135 . 636 849 399 354 . 72 . 169 376 . 860 81 89 166 43 20 . . . 12 . . 68 12 Effects 6 | . . . . . 2 . . 1 1 . . . 2 . . . . . . . . . . . . . . . . . . Interference 6 | . . . . . 2 . . 1 1 . . . 2 . . . . . . . . . . . . . . . . . . Siege Activations 19 | . . . . . . . . . 4 1 . . . . . . . 2 . 2 . 1 2 . . . . 1 . 3 3 Total Turns 407 | . . . . . . . . . 105 27 . . . . . . . 59 . 19 . 23 54 . . . . 20 . 49 51 Longest Duration 45 | . . . . . . . . . 35 27 . . . . . . . 38 . 12 . 23 45 . . . . 20 . 29 19 Martial Activations . | . . . . . . . . . . . . . . . . . . . . . . . . . . . . . . . . Shielding Activations . | . . . . . . . . . . . . . . . . . . . . . . . . . . . . . . . . Robots Disrupted . | . . . . . . . . . . . . . . . . . . . . . . . . . . . . . . . . Combat Hostiles . | . . . . . . . . . . . . . . . . . . . . . . . . . . . . . . . . Robots Corrupted 33 | . . . . . . . . . 2 1 . . 1 . 1 . . 4 . . 5 4 4 3 . . . . 1 7 . Combat Hostiles 28 | . . . . . . . . . 1 1 . . 1 . 1 . . 2 . . 5 4 4 3 . . . . . 6 . Parts Fried 67 | . . . . . . . . . 2 2 . . 1 . 3 . . 12 . . 10 8 7 3 . . . . 4 14 1 Impact Corruptions 10 | . . . . . 1 . . . 2 . . . . . . . . . . . . . . . . 1 . 1 1 4 . Robots Melted 8 | . . . . . . . . 2 . . . . . . . . 3 1 . 1 1 . . . . . . . . . . Combat Hostiles 8 | . . . . . . . . 2 . . . . . . . . 3 1 . 1 1 . . . . . . . . . . Parts Melted 36 | . 2 1 . . 2 3 . 5 14 . . . . . . . 2 3 1 1 . . 1 . . . . . . . 1 Heat Transferred 15704 | 148 1332 333 . 111 1221 1431 . 1739 1857 1140 . . 100 . . . 2292 1838 481 481 450 250 150 . . . . . . 200 150 Parts Sabotaged . | . . . . . . . . . . . . . . . . . . . . . . . . . . . . . . . . Parts Stolen . | . . . . . . . . . . . . . . . . . . . . . . . . . . . . . . . . Parts Stripped . | . . . . . . . . . . . . . . . . . . . . . . . . . . . . . . . . Power Chain Reactions 13 | . . . . . . . . . . 2 . . 1 . 1 . . . . . 1 . 1 . . . . . . 2 5 Latent Energy Used 196 | . . . . . . . . . . . . . . . . . . . . . 196 . . . . . . . . . . LE Corruption 5 | . . . . . . . . . . . . . . . . . . . . . 5 . . . . . . . . . . Alert | -11 -10 -10 -10 -9 -8 -8 -7 -7 -7 -7 -7 -7 -6 -6 -6 -5 -5 -5 -5 -5 -5 -4 -4 -4 -4 -4 -3 -3 -2 -1 -1 ------- Run | Yrd Mat Min Exi Min Mat Gar Fac Gar Fac Low Low Zio Pro Fac DSF Fac Was Fac Upp Upp War Pro Fac Upp Upp Zhi Pro Res Res Acc Com Maximum Alert Level 5 | . . . . 2 . 4 3 5 5 . . . . . 1 1 . 4 . . . . 2 . . . . . 2 4 4 Low Security (%) 29 | 100 100 100 . 13 100 3 . . . . . . . 100 77 16 100 10 . . . . 18 . . . . 100 63 . . Level 1 12 | . . . . 49 . 11 . . . . . . . . 22 83 . 32 . . . . 71 . . . . . 2 17 . Level 2 10 | . . . . 37 . 18 15 23 . . . . . . . . . 13 . . . . 9 . . . . . 33 19 . Level 3 26 | . . . . . . 27 84 27 39 . . . . . . . . 28 . . . . . . . . . . . 35 92 Level 4 16 | . . . . . . 38 . 36 41 . . . . . . . . 15 . . . . . . . . . . . 28 7 Level 5 3 | . . . . . . . . 11 15 . . . . . . . . . . . . . . . . . . . . . . High Security . | . . . . . . . . . 2 . . . . . . . . . . . . . . . . . . . . . . Max Security . | . . . . . . . . . . . . . . . . . . . . . . . . . . . . . . . . Sterilizations 1 | . . . . . . . . . . . . . . . 1 . . . . . . . . . . . . . . . . Peak Influence 2257 | 15 128 70 . 504 139 1568 823 1759 2257 . . . . 5 248 304 63 1360 . . . . 415 . . . . 94 619 1336 1077 Initial 923 | . 3 . . . 137 90 823 431 923 . . . . . 3 130 63 . . . . . 210 . . . . . 33 332 835 Average 626 | 3 15 10 . 345 111 920 767 1072 1257 . . . . 3 120 235 5 628 . . . . 299 . . . . 25 195 820 956 Influence Increases 16454 | 25 250 95 . 784 224 1568 14 1418 2413 320 . . 340 10 255 313 12 2269 205 220 488 373 795 70 . 5 170 306 788 1852 872 Destroy 0b10 Robot/C 8440 | . 140 80 . 200 140 700 . 780 1180 220 . . 280 . 200 220 . 920 180 200 420 320 320 60 . . 160 120 160 1060 380 Destroy 0b10 Robot/NC 830 | 25 55 15 . 5 30 25 . . 240 . . . . 5 . 45 . 70 5 . 10 15 45 . . 5 . 25 30 145 35 Destroy Leader 1240 | . 36 . . 40 44 20 . 30 230 40 . . 30 . 30 34 . 194 20 20 . 20 90 10 . . 10 34 44 230 34 Allied During Kill 852 | . . . . 4 . 60 . 54 23 . . . . . . . . 488 . . 58 18 . . . . . 25 89 33 . Successful Hack 200 | . . . . . . 14 14 . 22 . . . . 5 . . . . . . . . 29 . . . . 14 . 48 54 Select Force Hacks 30 | . . . . . . . . . 30 . . . . . . . . . . . . . . . . . . . . . . Disable Machine 840 | . . . . 30 . 75 . 15 315 . . . . . 15 . . 90 . . . . 60 . . . . 45 . 90 105 Anti-Garrison Action 1400 | . . . . . . 600 . 450 150 . . . . . . . . . . . . . . . . . . . 200 . . Destroy Structure 1541 | . 4 . . 46 10 74 . 89 193 . . . . . 10 14 12 492 . . . . 86 . . . . 28 63 156 264 Advance Influence 150 | . . . . . . . . . . . . . . . . . . . . . . . 150 . . . . . . . . Partial Spotted 15 | . . . . . . . . . . . . . . . . . . . . . . . . . . . . 15 . . . Lose Combat Pursuer 270 | . 15 . . 15 . . . . 30 60 . . 30 . . . . 15 . . . . 15 . . . . . . 90 . Miscellaneous 646 | . . . . 444 . . . . . . . . . . . . . . . . . . . . . . . . 202 . . Influence Decreases 15265 | 20 255 50 45 432 437 139 965 276 1915 1468 457 652 340 5 12 380 193 929 758 478 677 616 553 340 69 5 170 245 294 1101 989 Entered New Map 6429 | . 2 . 45 . 215 49 745 186 836 836 211 652 . . 2 118 118 . 496 150 529 340 37 126 14 . . . 28 223 471 Time Decay 6782 | 20 253 50 . 422 222 . 70 . 719 482 206 . 340 5 . 222 75 595 262 318 108 276 326 214 55 5 170 165 246 458 498 Lost Part 630 | . . . . 10 . 30 . 90 110 150 40 . . . 10 40 . 60 . 10 40 . . . . . . . . 20 20 Lost Ally 674 | . . . . . . 60 . . 100 . . . . . . . . 274 . . . . 40 . . . . 80 20 100 . Purge Threat 750 | . . . . . . . 150 . 150 . . . . . . . . . . . . . 150 . . . . . . 300 . Squads Dispatched 77 | . 2 . . 1 2 . . . 22 . . . . . 2 4 . 15 . . . 1 7 . . . . 2 1 11 7 Investigation 8 | . 1 . . 1 . . . . 3 . . . . . . . . 2 . . . . . . . . . . 1 . . Extermination 18 | . . . . . . . . . 5 . . . . . . 1 . 3 . . . . 1 . . . . 2 . 2 4 Reinforcement 27 | . 1 . . . 1 . . . 5 . . . . . 2 . . 9 . . . . 3 . . . . . . 4 2 Assault 12 | . . . . . . . . . 7 . . . . . . . . 1 . . . 1 . . . . . . . 2 1 Garrison 12 | . . . . . 1 . . . 2 . . . . . . 3 . . . . . . 3 . . . . . . 3 . Intercept . | . . . . . . . . . . . . . . . . . . . . . . . . . . . . . . . . Searches Triggered . | . . . . . . . . . . . . . . . . . . . . . . . . . . . . . . . . Construction Impeded 11 | . . . . . 1 . . . 3 . . . . . . . . 3 . . . . 1 . . . . . . 3 . Haulers Reinforced 2 | . . . . . . . . . 2 . . . . . . . . . . . . . . . . . . . . . . Active Scanning Responses . | . . . . . . . . . . . . . . . . . . . . . . . . . . . . . . . . Cargo Convoy Interrupts 1 | . . . . . . . . . . . . . . . . . . 1 . . . . . . . . . . . . . Stealth | -11 -10 -10 -10 -9 -8 -8 -7 -7 -7 -7 -7 -7 -6 -6 -6 -5 -5 -5 -5 -5 -5 -4 -4 -4 -4 -4 -3 -3 -2 -1 -1 --------- Run | Yrd Mat Min Exi Min Mat Gar Fac Gar Fac Low Low Zio Pro Fac DSF Fac Was Fac Upp Upp War Pro Fac Upp Upp Zhi Pro Res Res Acc Com Distress Signals 38 | . 1 . . . 2 4 . . . . . . . . . . . 2 . . . . 1 . . . . . 3 12 13 Communications Jammed . | . . . . . . . . . . . . . . . . . . . . . . . . . . . . . . . . Distress Signals . | . . . . . . . . . . . . . . . . . . . . . . . . . . . . . . . . Times Spotted 581 | . 25 6 . 8 10 41 . 44 82 15 1 . 15 . 13 18 6 55 9 12 50 20 18 4 . . 8 8 15 66 32 Peak Tracking Total 11 | . 3 3 . 3 4 6 1 7 9 7 1 . 5 . 4 7 2 11 3 5 9 9 6 2 . . 5 3 4 8 6 Tactical Retreats 13 | . 1 . . 1 . . . . 2 1 . . 1 . . . . 1 . . . . 1 . . . . . . 4 1 Traps | -11 -10 -10 -10 -9 -8 -8 -7 -7 -7 -7 -7 -7 -6 -6 -6 -5 -5 -5 -5 -5 -5 -4 -4 -4 -4 -4 -3 -3 -2 -1 -1 ------- Run | Yrd Mat Min Exi Min Mat Gar Fac Gar Fac Low Low Zio Pro Fac DSF Fac Was Fac Upp Upp War Pro Fac Upp Upp Zhi Pro Res Res Acc Com Traps Triggered 24 | . 5 . . . . 10 . 2 2 . . . . . 1 1 . 2 . . . . . . . . . 1 . . . Indirectly . | . . . . . . . . . . . . . . . . . . . . . . . . . . . . . . . . Trap Hack Attempts . | . . . . . . . . . . . . . . . . . . . . . . . . . . . . . . . . Triggered . | . . . . . . . . . . . . . . . . . . . . . . . . . . . . . . . . Disarmed . | . . . . . . . . . . . . . . . . . . . . . . . . . . . . . . . . Reprogrammed . | . . . . . . . . . . . . . . . . . . . . . . . . . . . . . . . . Reused . | . . . . . . . . . . . . . . . . . . . . . . . . . . . . . . . . Traps Extracted . | . . . . . . . . . . . . . . . . . . . . . . . . . . . . . . . . Installed . | . . . . . . . . . . . . . . . . . . . . . . . . . . . . . . . . Triggered . | . . . . . . . . . . . . . . . . . . . . . . . . . . . . . . . . Most Traps Carried 3 | . . . . . . . . . . . 3 3 . . . . . . . 2 . . . . . . . . . . . Machines | -11 -10 -10 -10 -9 -8 -8 -7 -7 -7 -7 -7 -7 -6 -6 -6 -5 -5 -5 -5 -5 -5 -4 -4 -4 -4 -4 -3 -3 -2 -1 -1 ---------- Run | Yrd Mat Min Exi Min Mat Gar Fac Gar Fac Low Low Zio Pro Fac DSF Fac Was Fac Upp Upp War Pro Fac Upp Upp Zhi Pro Res Res Acc Com Machines Disabled 73 | . . . . 2 . 12 . 9 22 . . . . . 1 . . 6 . . 1 . 4 . . . . 3 . 6 7 Max in Single Turn 3 | . . . . 1 . 2 . 1 3 . . . . . 1 . . 1 . . 1 . 2 . . . . 1 . 1 1 Garrison Access 4 | . . . . . . . . . 1 . . . . . . . . . . . . . 1 . . . . . 2 . . Garrison Relay 13 | . . . . . . 5 . 8 . . . . . . . . . . . . . . . . . . . . . . . Phase Generator 1 | . . . . . . 1 . . . . . . . . . . . . . . . . . . . . . . . . . Machines Repaired . | . . . . . . . . . . . . . . . . . . . . . . . . . . . . . . . . Machines Dismantled . | . . . . . . . . . . . . . . . . . . . . . . . . . . . . . . . . Machines Sabotaged . | . . . . . . . . . . . . . . . . . . . . . . . . . . . . . . . . Overloaded Fab Kills . | . . . . . . . . . . . . . . . . . . . . . . . . . . . . . . . . Hacking | -11 -10 -10 -10 -9 -8 -8 -7 -7 -7 -7 -7 -7 -6 -6 -6 -5 -5 -5 -5 -5 -5 -4 -4 -4 -4 -4 -3 -3 -2 -1 -1 --------- Run | Yrd Mat Min Exi Min Mat Gar Fac Gar Fac Low Low Zio Pro Fac DSF Fac Was Fac Upp Upp War Pro Fac Upp Upp Zhi Pro Res Res Acc Com Machines Accessed 48 | . . . 2 . 1 3 2 1 6 1 . 1 . 1 . 1 . 4 . 1 1 . 5 . . 4 . 3 1 7 3 Terminals 27 | . . . . . . 3 1 1 4 . . . . 1 . 1 . 4 . . . . 2 . . . . 2 . 5 3 Fabricators . | . . . . . . . . . . . . . . . . . . . . . . . . . . . . . . . . Repair Stations 1 | . . . . . . . . . . . . . . . . . . . . . . . . . . . . . . 1 . Recycling Units 1 | . . . . . . . . . 1 . . . . . . . . . . . . . . . . . . . . . . Scanalyzers 4 | . . . . . . . . . 1 . . . . . . . . . . . . . 2 . . . . 1 . . . Garrison Access 5 | . . . . . 1 . 1 . . . . . . . . . . . . . . . 1 . . . . . 1 1 . Total Hacks 106 | . . . 2 . 1 5 6 1 12 1 . 5 . 3 . 1 . 7 . 1 1 . 12 . . 17 . 6 3 14 8 Successful 57 | . . . 2 . 1 1 2 . 5 1 . 5 . 1 . . . . . 1 1 . 5 . . 17 . 1 1 9 4 Failed 49 | . . . . . . 4 4 1 7 . . . . 2 . 1 . 7 . . . . 7 . . . . 5 2 5 4 Catastrophic 17 | . . . . . . 2 . 1 4 . . . . . . 1 . 4 . . . . 2 . . . . 1 . . 2 Database Lockouts . | . . . . . . . . . . . . . . . . . . . . . . . . . . . . . . . . Manual 37 | . 6 . 1 . . . . . 7 . . . . . . . . 5 . . . . 5 . . . . 2 3 5 3 Terminals 59 | . . . . . . 5 3 1 9 . . . . 3 . 1 . 7 . . . . 7 . . . . 5 . 10 8 Fabricators . | . . . . . . . . . . . . . . . . . . . . . . . . . . . . . . . . Repair Stations 2 | . . . . . . . . . . . . . . . . . . . . . . . . . . . . . . 2 . Recycling Units 1 | . . . . . . . . . 1 . . . . . . . . . . . . . . . . . . . . . . Scanalyzers 7 | . . . . . . . . . 2 . . . . . . . . . . . . . 4 . . . . 1 . . . Garrison Access 10 | . . . . . 1 . 3 . . . . . . . . . . . . . . . 1 . . . . . 3 2 . Terminal Hacks 45 | . . . 2 . . 1 1 . 2 1 . 5 . 1 . . . . . 1 1 . 2 . . 17 . 1 . 7 3 Record 6 | . . . 1 . . . . . . . . . . . . . . . . . . . . . . 5 . . . . . Part Schematic 9 | . . . . . . . . . . . . 5 . . . . . . . . . . . . . 4 . . . . . Robot Analysis 4 | . . . . . . . . . . . . . . . . . . . . . . . . . . 4 . . . . . Prototype ID Bank 4 | . . . . . . . . . . . . . . . . . . . . . . . . . . 4 . . . . . Open Door 6 | . . . . . . . . . . 1 . . . . . . . . . 1 1 . . . . . . . . 3 . Open DSF 1 | . . . . . . . . . . . . . . 1 . . . . . . . . . . . . . . . . . Level Access Points 1 | . . . . . . . . . . . . . . . . . . . . . . . . . . . . 1 . . . Branch Access Points 3 | . . . . . . . . . 1 . . . . . . . . . . . . . 1 . . . . . . 1 . Machine Index 1 | . . . . . . . . . . . . . . . . . . . . . . . . . . . . . . . 1 Terminal Index 1 | . . . . . . . . . . . . . . . . . . . . . . . . . . . . . . 1 . Alert Level 1 | . . . . . . . . . . . . . . . . . . . . . . . . . . . . . . . 1 Unreport Threat 5 | . . . . . . . 1 . 1 . . . . . . . . . . . . . 1 . . . . . . 2 . Locate Traps 1 | . . . . . . . . . . . . . . . . . . . . . . . . . . . . . . . 1 Garrison Registry 1 | . . . . . . 1 . . . . . . . . . . . . . . . . . . . . . . . . . Proto ID Catalog 1 | . . . 1 . . . . . . . . . . . . . . . . . . . . . . . . . . . . Fabricator Hacks . | . . . . . . . . . . . . . . . . . . . . . . . . . . . . . . . . Repair Station Hacks 1 | . . . . . . . . . . . . . . . . . . . . . . . . . . . . . . 1 . Scan Component 1 | . . . . . . . . . . . . . . . . . . . . . . . . . . . . . . 1 . Recycling Unit Hacks . | . . . . . . . . . . . . . . . . . . . . . . . . . . . . . . . . Scanalyzer 3 | . . . . . . . . . 1 . . . . . . . . . . . . . 2 . . . . . . . . Insert Component 1 | . . . . . . . . . . . . . . . . . . . . . . . 1 . . . . . . . . Retrieve Study 2 | . . . . . . . . . 1 . . . . . . . . . . . . . 1 . . . . . . . . Garrison Access Hacks 3 | . . . . . 1 . 1 . . . . . . . . . . . . . . . 1 . . . . . . . . Unlock Access 2 | . . . . . 1 . 1 . . . . . . . . . . . . . . . . . . . . . . . . Seal Access 1 | . . . . . . . . . . . . . . . . . . . . . . . 1 . . . . . . . . Unauthorized Hacks 5 | . . . . . . . . . 2 . . . . . . . . . . . . . . . . . . . 1 1 1 Terminals 3 | . . . . . . . . . 1 . . . . . . . . . . . . . . . . . . . . 1 1 Botnet 1 | . . . . . . . . . . . . . . . . . . . . . . . . . . . . . . 1 . Operators 1 | . . . . . . . . . . . . . . . . . . . . . . . . . . . . . . . 1 Sabotage 1 | . . . . . . . . . 1 . . . . . . . . . . . . . . . . . . . . . . Fabricators . | . . . . . . . . . . . . . . . . . . . . . . . . . . . . . . . . Repair Stations . | . . . . . . . . . . . . . . . . . . . . . . . . . . . . . . . . Recycling Units 1 | . . . . . . . . . 1 . . . . . . . . . . . . . . . . . . . . . . Tunnel 1 | . . . . . . . . . 1 . . . . . . . . . . . . . . . . . . . . . . Scanalyzers . | . . . . . . . . . . . . . . . . . . . . . . . . . . . . . . . . Garrison Access 1 | . . . . . . . . . . . . . . . . . . . . . . . . . . . . . 1 . . Jam 1 | . . . . . . . . . . . . . . . . . . . . . . . . . . . . . 1 . . Data Cores Recovered 5 | . 1 . . . 1 . . . 1 . . . . 1 . . . . . . . . 1 . . . . . . . . Used . | . . . . . . . . . . . . . . . . . . . . . . . . . . . . . . . . Hacking Detections 32 | . . . . . . 3 2 1 4 . . . . 1 . 1 . 4 . . . . 4 . . . . 3 1 5 3 Full Trace Events 5 | . . . . . . 2 . . 1 . . . . . . . . 2 . . . . . . . . . . . . . Feedback Events . | . . . . . . . . . . . . . . . . . . . . . . . . . . . . . . . . Feedback Blocked . | . . . . . . . . . . . . . . . . . . . . . . . . . . . . . . . . Robot Schematics Acquired 4 | . . . . . . . . . . . . 4 . . . . . . . . . . . . . . . . . . . Robots Built . | . . . . . . . . . . . . . . . . . . . . . . . . . . . . . . . . Authchips . | . . . . . . . . . . . . . . . . . . . . . . . . . . . . . . . . Time . | . . . . . . . . . . . . . . . . . . . . . . . . . . . . . . . . Total Robot Build Rating . | . . . . . . . . . . . . . . . . . . . . . . . . . . . . . . . . Part Schematics Acquired 21 | . . . . . . . . . . . . 17 . . . . . . . . . . . . . 4 . . . . . Parts Built . | . . . . . . . . . . . . . . . . . . . . . . . . . . . . . . . . Authchips . | . . . . . . . . . . . . . . . . . . . . . . . . . . . . . . . . Time . | . . . . . . . . . . . . . . . . . . . . . . . . . . . . . . . . Total Part Build Rating . | . . . . . . . . . . . . . . . . . . . . . . . . . . . . . . . . Part Studies Acquired 2 | . . . . . . . . . 1 . . . . . . . . . . . . . 1 . . . . . . . . Parts Repaired . | . . . . . . . . . . . . . . . . . . . . . . . . . . . . . . . . Time . | . . . . . . . . . . . . . . . . . . . . . . . . . . . . . . . . Parts Recycled . | . . . . . . . . . . . . . . . . . . . . . . . . . . . . . . . . Recycled Matter . | . . . . . . . . . . . . . . . . . . . . . . . . . . . . . . . . Retrieved Matter . | . . . . . . . . . . . . . . . . . . . . . . . . . . . . . . . . Retrieved Components . | . . . . . . . . . . . . . . . . . . . . . . . . . . . . . . . . Parts Scanalyzed . | . . . . . . . . . . . . . . . . . . . . . . . . . . . . . . . . Part Schematics Acquired . | . . . . . . . . . . . . . . . . . . . . . . . . . . . . . . . . Parts Damaged . | . . . . . . . . . . . . . . . . . . . . . . . . . . . . . . . . Bothacking | -11 -10 -10 -10 -9 -8 -8 -7 -7 -7 -7 -7 -7 -6 -6 -6 -5 -5 -5 -5 -5 -5 -4 -4 -4 -4 -4 -3 -3 -2 -1 -1 ------------ Run | Yrd Mat Min Exi Min Mat Gar Fac Gar Fac Low Low Zio Pro Fac DSF Fac Was Fac Upp Upp War Pro Fac Upp Upp Zhi Pro Res Res Acc Com Used RIF Installer . | . . . . . . . . . . . . . . . . . . . . . . . . . . . . . . . . Robots Hacked . | . . . . . . . . . . . . . . . . . . . . . . . . . . . . . . . . Non-combat . | . . . . . . . . . . . . . . . . . . . . . . . . . . . . . . . . Combat . | . . . . . . . . . . . . . . . . . . . . . . . . . . . . . . . . Robot Hacks Applied . | . . . . . . . . . . . . . . . . . . . . . . . . . . . . . . . . Relay Couplers Released 57 | . . . . . . 21 . 32 2 . . . . . . . . . . . . . . . . . . . 2 . . Machine Destruction 57 | . . . . . . 21 . 32 2 . . . . . . . . . . . . . . . . . . . 2 . . Fabnet Peak Effective % . | . . . . . . . . . . . . . . . . . . . . . . . . . . . . . . . . Robots Rewired 9 | . . . . . . . . 2 . . . . . . . . . . . . 5 2 . . . . . . . . . Allies Hacked 2 | . . . . . . . . . . . . . . . . . . 1 . . . . . . . . . 1 . . . Hacks Repelled 1 | . . . . . . . . . . . . . . . . . . . . . . . . . . . . . . . 1 Allies | -11 -10 -10 -10 -9 -8 -8 -7 -7 -7 -7 -7 -7 -6 -6 -6 -5 -5 -5 -5 -5 -5 -4 -4 -4 -4 -4 -3 -3 -2 -1 -1 -------- Run | Yrd Mat Min Exi Min Mat Gar Fac Gar Fac Low Low Zio Pro Fac DSF Fac Was Fac Upp Upp War Pro Fac Upp Upp Zhi Pro Res Res Acc Com Total Allies 55 | . . 3 . 1 . 5 . 3 5 . . . . . . . 19 . . . 5 2 . . . . . 5 4 3 . Largest Group 19 | . . 3 . 1 . 5 . 2 5 . . . . . . . 19 19 . . 5 2 2 . . . . 5 4 3 . Highest-Rated Group 684 | . . 40 . 31 . 165 . 79 60 . . . . . . . 684 684 . . 218 78 78 . . . . 150 232 126 . Highest-Rated Ally 79 | . . 16 . 31 . 33 . 79 40 . . . . . . . 50 50 . . 49 48 48 . . . . 30 58 58 . Initial Warlord ECA Mod 29 | . . . . . . . 9 9 21 21 21 21 20 20 20 29 29 29 29 29 29 28 28 28 28 28 27 27 26 25 25 Total Orders 2 | . . . . . . . . . . . . . . . . . . . . . 2 . . . . . . . . . . STAY 2 | . . . . . . . . . . . . . . . . . . . . . 2 . . . . . . . . . . Ally Attacks 315 | . . . . 4 . 65 . 36 29 . . . . . . . . 142 . . . . 5 . . . . 22 2 10 . Total Damage 7611 | . . . . 64 . 1277 . 1089 362 . . . . . . . . 3892 . . . . 176 . . . . 444 39 268 . Kills 63 | . . . . 3 . 12 . 11 5 . . . . . . . . 27 . . . . 1 . . . . 3 . 1 . Allies Corrupted . | . . . . . . . . . . . . . . . . . . . . . . . . . . . . . . . . Allies Melted 3 | . . . . . . . . . . . . . . . . . . . . . . . . . . . . . 3 . . X0-1V1 Amusement Gains 487 | . 9 . . . 5 40 . 10 40 5 . 50 . . . . . 71 . 10 70 . 20 . . . . 5 20 83 49 Good Acts 119 | . . 1 . 1 2 9 1 8 7 9 9 1 3 . 2 4 6 6 1 4 4 6 5 2 1 . 1 5 5 8 8 Bad Acts 87 | . . 2 . 4 2 1 . 1 9 1 1 . 4 . . 1 4 9 3 4 . 1 2 1 . . 4 . 4 11 18 Intel | -11 -10 -10 -10 -9 -8 -8 -7 -7 -7 -7 -7 -7 -6 -6 -6 -5 -5 -5 -5 -5 -5 -4 -4 -4 -4 -4 -3 -3 -2 -1 -1 ------- Run | Yrd Mat Min Exi Min Mat Gar Fac Gar Fac Low Low Zio Pro Fac DSF Fac Was Fac Upp Upp War Pro Fac Upp Upp Zhi Pro Res Res Acc Com Active Infowar (turns) 3655 | 10 1581 . . . 122 30 . . . . . . . . . . . 1141 . 243 129 4 394 . 1 . . . . . . Optics 397 | . . . . . . . . . . . . . . . . . . . . . . 3 394 . . . . . . . . Sensors 1 | . . . . . . . . . . . . . . . . . . . . . . . . . 1 . . . . . . Terrain 1142 | . . . . . . . . . . . . . . . . . . 1141 . . . 1 . . . . . . . . . Seismic 2084 | 10 1581 . . . 122 . . . . . . . . . . . . . . 242 129 . . . . . . . . . . Triangulation 30 | . . . . . . 30 . . . . . . . . . . . . . . . . . . . . . . . . . Cloaking 1 | . . . . . . . . . . . . . . . . . . . . 1 . . . . . . . . . . . Robot Analysis Total 4 | . . . . . . . . . . . . . . . . . . . . . . . . . . 4 . . . . . Derelict Logs Recovered 16 | . . 1 . 1 . . . . . 1 2 1 1 . . . . . 1 2 . 2 . 2 2 . . . . . . Drone Launches . | . . . . . . . . . . . . . . . . . . . . . . . . . . . . . . . . Drone Recoveries . | . . . . . . . . . . . . . . . . . . . . . . . . . . . . . . . . Exploration | -11 -10 -10 -10 -9 -8 -8 -7 -7 -7 -7 -7 -7 -6 -6 -6 -5 -5 -5 -5 -5 -5 -4 -4 -4 -4 -4 -3 -3 -2 -1 -1 ------------- Run | Yrd Mat Min Exi Min Mat Gar Fac Gar Fac Low Low Zio Pro Fac DSF Fac Was Fac Upp Upp War Pro Fac Upp Upp Zhi Pro Res Res Acc Com Turns Passed 31092 | 94 1668 345 453 1039 478 1863 147 1507 3443 1250 426 1880 1041 29 432 467 910 1898 578 708 1250 916 736 455 379 313 703 599 1553 1147 2385 Spaces Moved 15005 | 16 933 177 253 409 191 759 89 668 1511 586 410 821 461 12 151 196 545 845 321 350 547 479 366 247 235 160 409 324 900 451 1183 Core 271 | . . . . . . . . . . . 271 . . . . . . . . . . . . . . . . . . . . Treads 13765 | . 636 177 253 409 191 759 89 668 1511 586 139 821 461 12 151 5 80 845 321 350 547 479 366 247 235 160 409 324 900 451 1183 Legs 313 | 16 297 . . . . . . . . . . . . . . . . . . . . . . . . . . . . . . Wheels 656 | . . . . . . . . . . . . . . . . 191 465 . . . . . . . . . . . . . . Hover . | . . . . . . . . . . . . . . . . . . . . . . . . . . . . . . . . Flight . | . . . . . . . . . . . . . . . . . . . . . . . . . . . . . . . . Fastest Speed 50 | 120 120 160 160 240 160 160 160 160 155 155 50 160 160 226 160 145 138 160 160 160 160 163 160 160 160 160 160 160 155 155 155 Average Speed 168 | 120 147 160 177 240 181 201 160 160 170 184 90 197 212 226 228 159 144 162 160 164 173 163 160 160 160 160 160 160 156 155 160 Slowest Speed 255 | 120 160 160 240 240 240 240 160 240 240 221 208 226 226 226 245 247 245 163 160 240 240 240 160 160 160 160 160 160 160 155 255 Overloaded Moves . | . . . . . . . . . . . . . . . . . . . . . . . . . . . . . . . . Propulsion Burnouts . | . . . . . . . . . . . . . . . . . . . . . . . . . . . . . . . . Robots Hopped . | . . . . . . . . . . . . . . . . . . . . . . . . . . . . . . . . Potential Cave-ins . | . . . . . . . . . . . . . . . . . . . . . . . . . . . . . . . . Cave-ins Triggered . | . . . . . . . . . . . . . . . . . . . . . . . . . . . . . . . . Teleports 1 | . . . . . . . . . . . . . . . . . . . . . . . . . . . . . . 1 . Exploration Rate (%) 49 | 2 98 56 62 84 21 90 2 81 35 70 55 84 62 1 76 9 93 23 56 52 68 59 15 49 40 60 62 11 49 17 33 Regions Visited 31 Branch Regions 16 Pre-discovered Areas 14 | . . 2 1 1 . . . . 1 1 1 2 . . . . . . . 1 . 1 . . . 3 . . . . . Known Exits Taken 13 | . . . . . 1 . 1 . 1 . 1 . 1 1 . . . 1 . . . 1 1 . . . 1 1 1 1 . Unknown Exits Taken 13 | 1 1 1 1 1 . . . . . 1 . 1 . . . . . . 1 1 1 . . 1 1 1 . . . . . Scrap Searched 24 | . . . . 1 . . . . . 3 2 5 2 . . . . . 3 2 . 1 . 2 1 . 2 . . . . Spaces Dug 136 | . 1 . . 34 . 3 . 19 . . . . 12 . . 4 . 9 . 7 . 3 11 3 . . 4 1 8 5 12 Terrain Destroyed 930 | . 3 . . 70 8 104 . 68 191 18 . . 12 . 11 7 6 52 19 26 18 29 45 4 . . 23 13 23 58 122 Melee 17 | . . . . . . 1 . 15 . . . . . . . 1 . . . . . . . . . . . . . . . Projectile 340 | . 3 . . . . . . . 15 6 . . . . . 6 2 40 19 26 16 29 20 4 . . 23 13 23 52 43 AOE 573 | . . . . 70 8 103 . 53 176 12 . . 12 . 11 . 4 12 . . 2 . 25 . . . . . . 6 79 Terrain Rammed . | . . . . . . . . . . . . . . . . . . . . . . . . . . . . . . . . Walls Destroyed . | . . . . . . . . . . . . . . . . . . . . . . . . . . . . . . . . Machines Disabled . | . . . . . . . . . . . . . . . . . . . . . . . . . . . . . . . . Actions | -11 -10 -10 -10 -9 -8 -8 -7 -7 -7 -7 -7 -7 -6 -6 -6 -5 -5 -5 -5 -5 -5 -4 -4 -4 -4 -4 -3 -3 -2 -1 -1 --------- Run | Yrd Mat Min Exi Min Mat Gar Fac Gar Fac Low Low Zio Pro Fac DSF Fac Was Fac Upp Upp War Pro Fac Upp Upp Zhi Pro Res Res Acc Com Total 18673 | 70 1135 202 259 438 271 945 94 908 1977 663 470 1078 488 12 215 285 644 1239 352 441 774 567 465 292 238 204 431 373 985 683 1475 Wait 1179 | 44 90 2 . . 24 37 . 23 154 3 7 228 3 . 16 32 22 200 4 32 31 17 12 21 . . . 18 25 60 74 Move 14975 | 15 932 176 252 408 191 758 88 667 1510 585 409 820 460 11 150 196 544 844 320 349 546 478 365 246 234 159 408 323 899 450 1182 Hop . | . . . . . . . . . . . . . . . . . . . . . . . . . . . . . . . . Pick Up 254 | . 18 1 3 . 10 16 2 18 18 7 23 6 . . 11 7 14 24 3 8 11 1 10 2 . 4 1 3 3 12 18 Fast Attach 154 | 1 4 . . . 3 3 . 7 28 8 8 3 2 . 5 3 7 17 . 3 17 2 10 . 2 5 2 1 4 6 3 Attach 125 | . 3 1 . 1 5 3 2 11 8 12 5 5 1 . 4 6 1 10 2 5 6 . 4 2 . 2 1 3 3 11 8 Detach 57 | . . . . . 2 . . 2 1 3 2 1 . . 3 3 2 9 2 1 6 . 5 . . 2 . 1 2 4 6 Swap 249 | . 10 3 2 6 4 14 1 42 27 4 . 1 2 . 4 2 11 12 1 4 12 6 10 6 . 1 2 2 4 26 30 Drop 311 | . 13 . 2 . 6 21 1 27 36 2 16 12 2 . 7 2 29 34 . 12 24 5 17 2 2 7 2 2 6 5 17 Fire 1111 | 10 57 17 . 16 24 67 . 58 174 39 . 1 18 1 15 33 14 83 20 27 57 34 31 13 . . 15 18 35 103 131 Melee 71 | . 3 2 . 1 . 15 . 42 6 . . 1 . . . 1 . . . . . . . . . . . . . . . Ram . | . . . . . . . . . . . . . . . . . . . . . . . . . . . . . . . . Kick 1 | . 1 . . . . . . . . . . . . . . . . . . . . . . . . . . . . . . Crush 76 | . 4 . . 6 2 . . 2 15 . . . . . . . . 6 . . . . 1 . . 24 . 2 4 6 4 Escape Stasis 11 | . . . . . . 11 . . . . . . . . . . . . . . . . . . . . . . . . . Rewire 99 | . . . . . . . . 9 . . . . . . . . . . . . 64 24 . . . . . . . . 2 Trap . | . . . . . . . . . . . . . . . . . . . . . . . . . . . . . . . . Miscellaneous . | . . . . . . . . . . . . . . . . . . . . . . . . . . . . . . . . Route ------- -11/Scrapyard -10/Materials (discovered 5 exits: [*Mat x2] / [*Min x2] / [*Sub]) -10/Mines (discovered 2 exits: [*Mat] / *Exi) -10/Exiles (discovered 2 exits: [*Min x2]) -9/Mines (discovered 2 exits: *Mat x2) -8/Materials (discovered 2 exits: *Fac / Gar) -8/Garrison (discovered 3 exits: *Fac x3) -7/Factory -7/Garrison (discovered 3 exits: *Fac x3) -7/Factory (discovered 5 exits: *Fac / *Sto x2 / *Low x2) -7/Lower Caves -7/Lower Caves (discovered 2 exits: Fac / *Zio) -7/Zion -6/Proximity Caves -6/Factory (discovered 3 exits: Fac / Low / DSF) -6/DSF -5/Factory (discovered 2 exits: Upp / Ext) -5/Waste -5/Factory (discovered 3 exits: *Fac / *Upp / Ext) -5/Upper Caves -5/Upper Caves (discovered 2 exits: Fac / *War) -5/Warlord -4/Proximity Caves -4/Factory (discovered 5 exits: *Res x2 / *Upp x2 / Arm) -4/Upper Caves -4/Upper Caves (discovered 2 exits: Res / *Zhi) -4/Zhirov -3/Proximity Caves -3/Research (discovered 4 exits: *Res x3 / Tes) -2/Research (discovered 3 exits: *Acc x2 / [*Qua]) -1/Access -1/Command (discovered 3 exits: [*Sur x2] / Ac0) 0b11 Command History --------- Turn | Location | Event 11 | -11/Scrapyard | Discovered new exit (range 3) 95 | -11/Scrapyard | Entered Materials 234 | -10/Materials | Discovered new exit (range 15) 335 | -10/Materials | Build established: Mutant 795 | -10/Materials | Derelicts attacked the area 1065 | -10/Materials | Discovered new exit (range 6) 1289 | -10/Materials | Discovered new exit (range 16) 1392 | -10/Materials | Discovered new exit (range 9) 1644 | -10/Materials | Discovered new exit (range 10) 1659 | -10/Materials | Prayed at D.C.S.S. Altar Unit 1763 | -10/Materials | Entered Mines 1764 | -10/Mines | Learned location of Storage (-7) 1819 | -10/Mines | Assisted by bots powering up and referring to "LRC-V3" 1931 | -10/Mines | Found a hidden stash of uninstalled traps 1978 | -10/Mines | Learned location of Zion (-7) 1995 | -10/Mines | Excavation squad dispatched 1995 | -10/Mines | A large section of the Mines collapsed 2067 | -10/Mines | X0-1V1 announced a LAN party 2078 | -10/Mines | Discovered new exit (range 10) 2086 | -10/Mines | X0-1V1 mutated your Weapon slot to Power slot 2101 | -10/Mines | Deemed a non-threat by the Exiles lab entrance 2101 | -10/Mines | Discovered new exit (range 5) 2108 | -10/Mines | Entered Exiles 2131 | -10/Exiles | Discovered new exit (range 15) 2150 | -10/Exiles | Met 8R-AWN 2176 | -10/Exiles | Met EX-HEX 2220 | -10/Exiles | Met EX-BIN 2238 | -10/Exiles | Aligned with FarCom system 2240 | -10/Exiles | Given EX-Vault access code 2276 | -10/Exiles | Opened EX-Vault 2290 | -10/Exiles | Found Latent Energy Streamer 2319 | -10/Exiles | Warned to stay clear of 0b10 Research branches 2367 | -10/Exiles | Met EX-DEC 2530 | -10/Exiles | Discovered new exit (range 14) 2561 | -10/Exiles | Left Exiles lab with Latent Energy Streamer 2561 | -10/Exiles | Entered Mines 2648 | -9/Mines | X0-1V1 added 0b10 threat records associated with you (considerable) 2697 | -9/Mines | Received a Mining Laser from a helpful Derelict 2855 | -9/Mines | X0-1V1 added 0b10 threat records associated with you (considerable) 3106 | -9/Mines | Discovered new exit (range 5) 3528 | -9/Mines | Core integrity permanently improved by X0-1V1 (+200) 3581 | -9/Mines | Discovered new exit (range 9) 3600 | -9/Mines | Entered Materials 3600 | -8/Materials | Evolved 4 slots: Propulsion x1, Utility x1, Weapon x2 3610 | -8/Materials | Melee accuracy permanently improved by X0-1V1 (+5%) 3879 | -8/Materials | Discovered new exit (range 16) 4000 | -8/Materials | Garrison activated, responded to threat 4078 | -8/Materials | Identified exit to Garrison 4078 | -8/Materials | Entered Garrison 4099 | -8/Garrison | Phase Generator disabled 4110 | -8/Garrison | KI resistance permanently improved by X0-1V1 (+10%) 4209 | -8/Garrison | X0-1V1 sent you into danger 4217 | -8/Garrison | Garrison Relay disabled 4228 | -8/Garrison | Triggered checkpoint 4345 | -8/Garrison | Triggered checkpoint 4354 | -8/Garrison | Triggered checkpoint 4465 | -8/Garrison | X0-1V1 sent allied Scrapper (x5) 4631 | -8/Garrison | Build established: Scavenger-Skirmisher 4651 | -8/Garrison | Discovered new exit (range 13) 4752 | -8/Garrison | Garrison Relay disabled 4927 | -8/Garrison | Garrison Relay disabled 5018 | -8/Garrison | Discovered new exit (range 10) 5050 | -8/Garrison | Triggered checkpoint 5099 | -8/Garrison | Garrison Relay disabled 5188 | -8/Garrison | X0-1V1 activates XOMVISION 5225 | -8/Garrison | X0-1V1 whisked you away to safety 5404 | -8/Garrison | Triggered checkpoint 5468 | -8/Garrison | Triggered checkpoint 5500 | -8/Garrison | Garrison Relay disabled 5527 | -8/Garrison | Discovered new exit (range 59) 5527 | -8/Garrison | Discovered new exit (range 24) 5527 | -8/Garrison | Discovered new exit (range 75) 5941 | -8/Garrison | Entered Factory 5941 | -7/Factory | Evolved 2 slots: Propulsion x1, Utility x1 6081 | -7/Factory | Identified exit to Garrison 6088 | -7/Factory | Entered Garrison 6188 | -7/Garrison | Garrison Relay disabled 6237 | -7/Garrison | Identified exit to Factory 6237 | -7/Garrison | X0-1V1 revealed exit location to -7/Factory 6333 | -7/Garrison | X0-1V1 activates XOMVISION 6346 | -7/Garrison | Garrison Relay disabled 6361 | -7/Garrison | Garrison Relay disabled 6382 | -7/Garrison | X0-1V1 sent allied Knight (x1) 6425 | -7/Garrison | Garrison Relay disabled 6426 | -7/Garrison | Lost 6 parts (1p1n2u2w) 6440 | -7/Garrison | Garrison Relay disabled 6470 | -7/Garrison | X0-1V1 revealed exit location to -7/Factory 6574 | -7/Garrison | Triggered checkpoint 6657 | -7/Garrison | Triggered checkpoint 6694 | -7/Garrison | Discovered exit to Factory (range 10) 6714 | -7/Garrison | Triggered checkpoint 6747 | -7/Garrison | Garrison Relay disabled 6861 | -7/Garrison | Triggered checkpoint 6885 | -7/Garrison | Destroyed 7 combat bots 6960 | -7/Garrison | Triggered checkpoint 7280 | -7/Garrison | Garrison Relay disabled 7282 | -7/Garrison | Triggered checkpoint 7364 | -7/Garrison | X0-1V1 mutated your Utility slot to Weapon slot 7460 | -7/Garrison | Triggered checkpoint 7539 | -7/Garrison | Garrison Relay disabled 7595 | -7/Garrison | Entered Factory 7595 | -7/Factory | Accompanied by 2 allies 7995 | -7/Factory | First assault squad dispatched 8047 | -7/Factory | Garrison activated, responded to threat 8152 | -7/Factory | Identified exit to Storage 8152 | -7/Factory | Identified exit to Lower Caves 8554 | -7/Factory | Build established: Scavenger-Tank 8794 | -7/Factory | System corruption reached 10% 8958 | -7/Factory | Build established: Tank 9036 | -7/Factory | System corruption reached 30% 9148 | -7/Factory | Discovered new exit (range 5) 9151 | -7/Factory | X0-1V1 sent you to a vault 9355 | -7/Factory | Lost 4 allies 9632 | -7/Factory | X0-1V1 foreshadows a heat wave 9826 | -7/Factory | Ambient heat levels rising (+10) 9969 | -7/Factory | Ambient heat levels rising (+10) 10042 | -7/Factory | Build established: Scavenger-Tank 10156 | -7/Factory | Ambient heat levels falling (-10) 10367 | -7/Factory | Ambient heat levels falling (-10) 10731 | -7/Factory | X0-1V1 sent hostile D-53 Grenadier (x1) 10737 | -7/Factory | Garrison activated, responded to threat 10748 | -7/Factory | Core integrity fell below 50% 10842 | -7/Factory | Build established: Tank 10912 | -7/Factory | X0-1V1 sent hostile H-55 Commando (x2) 10955 | -7/Factory | High security lockdown imminent 10980 | -7/Factory | Destroyed 11 combat bots 10986 | -7/Factory | Lost 5 parts (2p2n1w) 11035 | -7/Factory | High security lockdown engaged 11038 | -7/Factory | Entered Lower Caves 11045 | -7/Lower Caves | Met a Warlord Commander 11046 | -7/Lower Caves | Learned location of Warlord (-5) 11047 | -7/Lower Caves | Warlord Commander delivered Encrypted Comm Array 11067 | -7/Lower Caves | Encountered a Warlord checkpoint 11213 | -7/Lower Caves | Build established: Scavenger-Tank 11596 | -7/Lower Caves | Spotted B-75 Beast 11629 | -7/Lower Caves | Core integrity restored by X0-1V1 (+112) 11728 | -7/Lower Caves | Core integrity fell below 20% 11752 | -7/Lower Caves | Destroyed B-75 Beast 11766 | -7/Lower Caves | Lost 12 parts (4p2n1u5w) 12128 | -7/Lower Caves | Build established: Scavenger-Gunner 12237 | -7/Lower Caves | Discovered new exit (range 13) 12288 | -7/Lower Caves | Entered another Lower Caves area 12321 | -7/Lower Caves | Spotted B-75 Beast 12354 | -7/Lower Caves | Learned location of 1 exit from Factory 12390 | -7/Lower Caves | Identified exit to Factory 12390 | -7/Lower Caves | X0-1V1 revealed exit location to -6/Factory 12391 | -7/Lower Caves | Core integrity restored by X0-1V1 (+165) 12398 | -7/Lower Caves | Lost 3 parts (3n) 12427 | -7/Lower Caves | Encountered a Warlord checkpoint 12450 | -7/Lower Caves | Identified exit to Zion 12450 | -7/Lower Caves | X0-1V1 revealed exit location to -7/Zion 12455 | -7/Lower Caves | X0-1V1 activates XOMVISION 12714 | -7/Lower Caves | Entered Zion 12772 | -7/Zion | System corruption cleaned by Quarantine Array 12820 | -7/Zion | Discovered new exit (range 8) 13016 | -7/Zion | Build established: Scavenger-Mutant 13182 | -7/Zion | Found Prototype Energy Gun 13182 | -7/Zion | Identified Storm Laser 13448 | -7/Zion | Rebuked by Imprinter 13469 | -7/Zion | Build established: Scavenger-Gunner 13507 | -7/Zion | Given A8's code to call for help 13669 | -7/Zion | Learned Factory emergency access door positions 14488 | -7/Zion | Attacked by Zionites 14554 | -7/Zion | Core integrity restored by X0-1V1 (+195) 14594 | -7/Zion | Entered Proximity Caves 14706 | -6/Proximity Caves | Learned Factory security intel 14759 | -6/Proximity Caves | X0-1V1 mutated your Propulsion slot to Utility slot 14872 | -6/Proximity Caves | Spotted B-75 Beast 15059 | -6/Proximity Caves | Attracted the attention of an 0b10 checkpoint 15617 | -6/Proximity Caves | Discovered exit to Factory (range 9) 15635 | -6/Proximity Caves | Entered Factory 15635 | -6/Factory | Evolved 2 slots: Propulsion x1, Utility x1 15636 | -6/Factory | Identified exit to Lower Caves 15637 | -6/Factory | Identified exit to Factory 15664 | -6/Factory | Identified exit to DSF 15664 | -6/Factory | Entered DSF 15665 | -6/DSF | Joined Warlord attack on 0b10 via DSF 15689 | -6/DSF | Additional patrols routed to DSF 15730 | -6/DSF | Lost 4 allies 15841 | -6/DSF | Discovered exit to Factory (range 15) 15999 | -6/DSF | Sterilization system engaged 16019 | -6/DSF | Ambient heat levels rising (+10) 16034 | -6/DSF | Ambient heat levels rising (+10) 16049 | -6/DSF | Ambient heat levels rising (+10) 16064 | -6/DSF | Ambient heat levels rising (+10) 16079 | -6/DSF | Ambient heat levels rising (+10) 16094 | -6/DSF | Ambient heat levels rising (+10) 16096 | -6/DSF | Entered Factory 16096 | -5/Factory | Evolved 2 slots: Propulsion x1, Utility x1 16097 | -5/Factory | Identified exit to Upper Caves 16105 | -5/Factory | X0-1V1 sent you into danger 16149 | -5/Factory | Lost 4 parts (1p1n1u1w) 16173 | -5/Factory | Garrison activated, responded to threat 16238 | -5/Factory | Lost 3 allies 16284 | -5/Factory | X0-1V1 activates XOMVISION 16540 | -5/Factory | Identified exit to Extension 16540 | -5/Factory | X0-1V1 revealed exit location to -5/Extension 16563 | -5/Factory | Sucked down chute 16563 | -5/Factory | Entered Waste 16588 | -5/Waste | Destroyed C-40 Crusher 16601 | -5/Waste | Destroyed C-40 Crusher 16647 | -5/Waste | Spotted C-40 Crusher 16658 | -5/Waste | Destroyed C-40 Crusher 16673 | -5/Waste | Spotted C-40 Crusher 16678 | -5/Waste | Destroyed C-40 Crusher 16698 | -5/Waste | Spotted C-40 Crusher 16701 | -5/Waste | Spotted C-40 Crusher 16725 | -5/Waste | Destroyed C-40 Crusher 16735 | -5/Waste | Destroyed C-40 Crusher 16860 | -5/Waste | Discovered new exit (range 15) 16931 | -5/Waste | Build established: Scavenger-Tank 16998 | -5/Waste | X0-1V1 activates XOMVISION 17127 | -5/Waste | X0-1V1 vaporized surrounding terrain (radius 18) 17191 | -5/Waste | Warlord forces began an assault 17201 | -5/Waste | Found Broken Gamma Bomb Array 17320 | -5/Waste | X0-1V1 mutated your Weapon slot to Propulsion slot 17381 | -5/Waste | X0-1V1 vaporized surrounding terrain (radius 18) 17473 | -5/Waste | Entered Factory 17473 | -5/Factory | Accompanied by 19 allies 17706 | -5/Factory | X0-1V1 whisked you away to safety 17727 | -5/Factory | Lost 3 allies 17770 | -5/Factory | Allied Derelicts emerged from ambush trap array 17821 | -5/Factory | X0-1V1 enhanced Transport squad support 18036 | -5/Factory | Build established: Scavenger-Skirmisher 18151 | -5/Factory | X0-1V1 activates XOMVISION 18330 | -5/Factory | Discovered new exit (range 5) 18410 | -5/Factory | Identified exit to Factory 18494 | -5/Factory | X0-1V1 redirected Transport squads to designated parking area 18742 | -5/Factory | Discovered exit to Upper Caves (range 2) 18973 | -5/Factory | First assault squad dispatched 18992 | -5/Factory | Cargo convoy interrupted 19029 | -5/Factory | Lost 4 allies 19062 | -5/Factory | Destroyed 8 combat bots 19118 | -5/Factory | Discovered exit to Extension (range 19) 19230 | -5/Factory | Weapon slot count temporarily expanded by X0-1V1 (+1) 19241 | -5/Factory | System corruption reached 10% 19293 | -5/Factory | X0-1V1 mutated your Utility slot to Weapon slot 19300 | -5/Factory | Lost 3 parts (2p1w) 19371 | -5/Factory | Entered Upper Caves 19512 | -5/Upper Caves | Learned Factory trap positions 19624 | -5/Upper Caves | X0-1V1 vaporized surrounding terrain (radius 17) 19732 | -5/Upper Caves | Encountered a Warlord checkpoint 19741 | -5/Upper Caves | Build established: Gunner 19897 | -5/Upper Caves | X0-1V1 sent hostile S-27 Virus (x3) 19933 | -5/Upper Caves | Discovered new exit (range 4) 19949 | -5/Upper Caves | Entered another Upper Caves area 20124 | -5/Upper Caves | Spotted B-75 Beast 20369 | -5/Upper Caves | X0-1V1 revealed exit location to -4/Factory 20376 | -5/Upper Caves | Attracted the attention of an 0b10 checkpoint 20404 | -5/Upper Caves | X0-1V1 sent hostile Thug (x4) 20444 | -5/Upper Caves | Learned location of 1 exit from Factory 20471 | -5/Upper Caves | Build established: Tank 20607 | -5/Upper Caves | X0-1V1 mutated your Propulsion slot to Utility slot 20645 | -5/Upper Caves | Discovered new exit (range 5) 20657 | -5/Upper Caves | Entered Warlord 20734 | -5/Warlord | System corruption cleaned by Quarantine Array 20773 | -5/Warlord | System corruption cleaned by Quarantine Array 20955 | -5/Warlord | Found Prototype Reactor 20955 | -5/Warlord | Identified Vortex Chain Reactor 20964 | -5/Warlord | Found Prototype Device 20964 | -5/Warlord | Identified Exp. Phase Shifter 20974 | -5/Warlord | Found Prototype Processor 20974 | -5/Warlord | Identified Exp. Core Analyzer 20978 | -5/Warlord | Found Prototype Device 20978 | -5/Warlord | Identified Exp. Focal Shield 20985 | -5/Warlord | Found Prototype Hackware 21275 | -5/Warlord | Visited the Vortex Lab 21287 | -5/Warlord | Found Prototype Energy Gun 21287 | -5/Warlord | Identified Vortex Shotgun 21288 | -5/Warlord | Warlord's base attacked by MAIN.C 21299 | -5/Warlord | Found Prototype Launcher 21308 | -5/Warlord | Found Vortex Shotgun 21373 | -5/Warlord | Met Warlord 21519 | -5/Warlord | Build established: Commander-Tank 21565 | -5/Warlord | Spotted B-86 Titan 21582 | -5/Warlord | Destroyed B-86 Titan 21614 | -5/Warlord | Lost 4 allies 21617 | -5/Warlord | Found Prototype Ballistic Cannon 21617 | -5/Warlord | Identified Hvy. Autocannon 21638 | -5/Warlord | Warlord forces counterattacked 21663 | -5/Warlord | Spotted Striker 21667 | -5/Warlord | Destroyed Striker 21670 | -5/Warlord | Spotted Striker 21699 | -5/Warlord | Lost 4 allies 21727 | -5/Warlord | Spotted Striker 21740 | -5/Warlord | P-70 Sage assimilated allied AK-6AA(g) 21742 | -5/Warlord | Spotted AK-6AA(g) 21767 | -5/Warlord | Spotted Striker 21771 | -5/Warlord | Spotted Executioner 21773 | -5/Warlord | Destroyed Executioner 21819 | -5/Warlord | Spotted Striker 21826 | -5/Warlord | Lost 18 allies 21845 | -5/Warlord | Destroyed 12 combat bots 21862 | -5/Warlord | Found Prototype Device 21862 | -5/Warlord | Identified Adv. Kinecellerator 21886 | -5/Warlord | Discovered new exit (range 15) 21907 | -5/Warlord | Entered Proximity Caves 21911 | -4/Proximity Caves | Spotter reported a threat 22040 | -4/Proximity Caves | Core integrity restored by X0-1V1 (+168) 22125 | -4/Proximity Caves | X0-1V1 revealed exit location to -4/Factory 22130 | -4/Proximity Caves | Learned 4 Research zone layouts 22145 | -4/Proximity Caves | Attracted the attention of an 0b10 outpost 22212 | -4/Proximity Caves | Build established: Tank 22460 | -4/Proximity Caves | X0-1V1 activates XOMVISION 22720 | -4/Proximity Caves | Learned location of Testing (-3) 22823 | -4/Proximity Caves | Entered Factory 22823 | -4/Factory | Accompanied by 2 allies 22823 | -4/Factory | Evolved 2 slots: Propulsion x1, Utility x1 22824 | -4/Factory | Identified exit to Research 22825 | -4/Factory | Loaded intel: 116 trap records 22882 | -4/Factory | X0-1V1 announced a LAN party 22887 | -4/Factory | X0-1V1 sent you to a vault 22894 | -4/Factory | Found Chaos Jack 22906 | -4/Factory | Found Prototype Slashing Weapon 22906 | -4/Factory | Identified Hvy. Scimitar of Distortion 22922 | -4/Factory | Garrison activated, responded to threat 23041 | -4/Factory | Identified System Mapper 23042 | -4/Factory | Identified exit to Upper Caves 23042 | -4/Factory | Identified exit to Armory 23169 | -4/Factory | Identified Vortex Catalyst Activator 23207 | -4/Factory | Weapon slot count temporarily expanded by X0-1V1 (+1) 23277 | -4/Factory | Destroyed 9 combat bots 23326 | -4/Factory | Discovered exit to Research (range 3) 23336 | -4/Factory | Build established: Hacker-Tank 23559 | -4/Factory | Entered Upper Caves 23568 | -4/Upper Caves | Learned 8 Research zone layouts 23821 | -4/Upper Caves | Learned Research garrison access intel 23964 | -4/Upper Caves | Discovered new exit (range 10) 24003 | -4/Upper Caves | Spotted B-86 Titan 24014 | -4/Upper Caves | Entered another Upper Caves area 24083 | -4/Upper Caves | Learned 4 Research zone layouts 24094 | -4/Upper Caves | Encountered a Warlord checkpoint 24380 | -4/Upper Caves | Discovered new exit (range 5) 24393 | -4/Upper Caves | Entered Zhirov 24393 | -4/Zhirov | Discovered new exit (range 4) 24422 | -4/Zhirov | Met Zhirov 24451 | -4/Zhirov | Learned location of Command (-1) 24465 | -4/Zhirov | Zhirov requested help retrieving the SGEMP Prototype 24490 | -4/Zhirov | Found Alien Artifact 24490 | -4/Zhirov | Identified Integrated Dissipator 24490 | -4/Zhirov | Installed Integrated Dissipator, increased core heat dissipation (+20) 24569 | -4/Zhirov | Found Alien Artifact 24706 | -4/Zhirov | Entered Proximity Caves 24732 | -3/Proximity Caves | Attracted the attention of an 0b10 checkpoint 24813 | -3/Proximity Caves | X0-1V1 mutated your Utility slot to Weapon slot 25374 | -3/Proximity Caves | Discovered exit to Research (range 12) 25409 | -3/Proximity Caves | Entered Research 25409 | -3/Research | Evolved 2 slots: Power x1, Utility x1 25410 | -3/Research | Identified exit to Testing 25410 | -3/Research | Identified exit to Research 25411 | -3/Research | Loaded intel: 4 garrison access locations 25543 | -3/Research | X0-1V1 sent you to a vault 25618 | -3/Research | Lost 4 allies 25670 | -3/Research | X0-1V1 activates XOMVISION 26008 | -3/Research | Entered another Research area 26008 | -2/Research | Warlord forces began assault on 0b10 26008 | -2/Research | Evolved 2 slots: Utility x2 26033 | -2/Research | Distinguished unit "Smaug Mourners" dispatched to help 26033 | -2/Research | Distinguished unit "Lair Dwellers" dispatched to help 26082 | -2/Research | Met up with Warlord 26118 | -2/Research | Research machine network offline 26348 | -2/Research | Borebot progress halted 26381 | -2/Research | Met DD-05H 26416 | -2/Research | Identified exit to Access 26416 | -2/Research | X0-1V1 revealed exit location to -1/Access 26545 | -2/Research | Found Gamma Bomb Array 26630 | -2/Research | Spotted Striker 26882 | -2/Research | X0-1V1 sent you to a vault 26915 | -2/Research | Spotted Executioner 26915 | -2/Research | X0-1V1 sent you into danger 26945 | -2/Research | Discovered exit to Access (range 12) 27015 | -2/Research | Spotted Striker 27018 | -2/Research | Spotted Striker 27026 | -2/Research | Destroyed Striker 27034 | -2/Research | X0-1V1 added 0b10 threat records associated with you (considerable) 27056 | -2/Research | Lost 4 allies 27113 | -2/Research | X0-1V1 rewrote Enforcer 9d IFF filter 27216 | -2/Research | Spotted Striker 27226 | -2/Research | Destroyed Striker 27267 | -2/Research | Lost 5 allies 27485 | -2/Research | Found Ragnarok Missile Launcher 27490 | -2/Research | Discovered new exit (range 10) 27513 | -2/Research | Given Cave Seal Controls access code 27561 | -2/Research | Entered Access 27561 | -1/Access | Accompanied by 2 allies 27561 | -1/Access | Evolved 2 slots: Power x1, Utility x1 27703 | -1/Access | Garrison activated, responded to threat 27713 | -1/Access | Found Ragnarok Missile Launcher 27754 | -1/Access | Spotted B-99 Colossus 27757 | -1/Access | Destroyed 8 combat bots 27769 | -1/Access | Destroyed B-99 Colossus 27783 | -1/Access | X0-1V1 mutated your Weapon slot to Utility slot 27840 | -1/Access | X0-1V1 sent you to a vault 27873 | -1/Access | Build established: Generator-Tank 27982 | -1/Access | Lost 3 allies 28048 | -1/Access | Destroyed 14 combat bots 28061 | -1/Access | First assault squad dispatched 28210 | -1/Access | Identified Transdimensional Reconstructor 28210 | -1/Access | Warped through subspace 28273 | -1/Access | Destroyed 7 combat bots 28315 | -1/Access | Identified exit to Command 28640 | -1/Access | Build established: Hacker-Tank 28708 | -1/Access | Entered Command 28785 | -1/Command | Spotted B-99 Colossus 28976 | -1/Command | Disengaged cave seal 28987 | -1/Command | Welcomed Warlord to Command 29171 | -1/Command | Warlord commented on Warlord statues 29208 | -1/Command | First assault squad dispatched 29220 | -1/Command | Spotted M Guard 29250 | -1/Command | X0-1V1 sent hostile Y-72 Warden (x2) 29252 | -1/Command | All MAIN.C guards destroyed 29271 | -1/Command | Lost 11 allies 29600 | -1/Command | Build established: Generator-Tank 29760 | -1/Command | P-80 Master assimilated allied ZN-N5Z(l) 30005 | -1/Command | Met MAIN.C 30008 | -1/Command | Warlord shut down involuntarily 30011 | -1/Command | 0b10 Conduit disabled 30032 | -1/Command | Destroyed MAIN.C Shell 30034 | -1/Command | MAIN.C activated Command garrisons 30067 | -1/Command | Discovered new exit (range 37) 30067 | -1/Command | Discovered new exit (range 102) 30067 | -1/Command | Extracted map data and part IDs from MAIN.C's data core 30076 | -1/Command | Lost 5 allies 30122 | -1/Command | Identified exit to Access_0 30122 | -1/Command | X0-1V1 revealed exit location to -1/Access_0 30266 | -1/Command | X0-1V1 sent you to a vault 30271 | -1/Command | Found Prototype Slashing Weapon 30277 | -1/Command | Identified Hvy. Scimitar of Distortion 30291 | -1/Command | Found Botcube 30448 | -1/Command | Spotted Alpha 7 30532 | -1/Command | X0-1V1 sent hostile H-88 Terminator (x4) 30537 | -1/Command | Attacked by Warlord forces 30879 | -1/Command | System corruption reached 10% 30979 | -1/Command | Found Gamma Refractor 30982 | -1/Command | X0-1V1 sent hostile X-87 Electro (x4) 30993 | -1/Command | System corruption reached 30% 31093 | *** | Establishing 0b11! Last Messages --------------- 31004_ Adv. Power Amplifier fried. 31004_ X-87 Electro destroyed. 31008_ Acquired 143 matter. 31008_ Acquired 5 matter. 31008_ Acquired 91 matter. 31008_ Acquired 10 matter. 31014_ Ended siege mode. 31017_ System corrupted: Component data lost. 31029_ Movement behavior is fully back under control. 31038_ System corrupted: Energy discharge (-788). 31055_ IFXBPCQTVXCEODU6GOUN%BZIOZQUEUDVSVB 31071_ System corrupted: Matter fused (-10). 31088_ System corrupted: Matter fused (-5). 31090_ Dropped Gamma Refractor. 31091_ Acquired Gamma Refractor. 31092_ Dropped Botcube. 31092_ Acquired Botcube. [Achievement: Chaotic Teddy Bear] Map ----- +----------------------------------------------------+ | ### #???????????# ""%! ## #?#?#"" | | # #########?##########+""% "# #?#?#"" | | # ## #?# #?# #" "##########?#?#"" | | # %## ### #?# ## "##"###?????#?#"" | | + "# + + #?# ##% #?????#?#" | | #### "" ### #?# ## #?????#?#"" | | #??# "" * #?# ### ## #?????#?#"" | | #??# #" #?# # "#% = #?????#?# " | | +##??# ##"+"+###### # %% #?????#?# | | ##### ### % #?????#?# " | | + % = =!% #?????#?#"" | | #####"%% =%! #?????#?#"" | | #????# *!* == #?????#?# | | #????# [ %! ==* #?????#?# | | #????# ! = % =% #########! | | #????# % != ! % |!%=[ | | #????# % % [!! | | #????# !!= ! | | #????# =[ ! ##### | | #????# =[! "##?# | | #????# ## # # # = %###?# | | #????# # # # " !!!#?#?### | | ###### # ## =[[ !! #?#???? | | ## # =[= ######## ![[ !! #?##### | | % % # *%[ ### ## ![ #?????? | | % !=% ##?# @ ## # * = #?????? | | ## ######## #??# ## # = #?????? | | ?## %##??????# #??### ## + ##????? | | ??# ######??# #????# ## #### "###??? | | ??# # #??# #????# ## #??# #### | | ??# # #??# #????# ## #??# # | | ??# # #### ###### ########## | | ??# # # | | ??# # + % | | ??# # ################+###########+########! % | | ??# # #???????????# ## ##### = | | ??# ###"####?????????# ## ##[]]* ! | | ??# #"" """#?????????# ## ##]]] =% | | ??# + """#?????????# """" ##" ##!!! % | | ??# + """#?????????# """" ##"" ##!!!**= | | ??# + """#?????????# """" ##"" ######## | | ??# #""""""#?????????# """" ##"" #??????? | | ??###########?????????# ##"" #??????? | | ??????????????????????#! ##"T #??????? | | ??????????????????????###+#######"" #??????? | | ????????????????????????# #?????#"" #??????? | | ????????????????????????# #?????#"" #??????? | | ????????????????????????# #?????#"" #??????? | | ????????????????????????# #######" #??????? | | ????????????????????????# ^ + #??????? | +----------------------------------------------------+ Best States ------------- Heat Dissipation 216 Coolant Potential 120 Energy Generation 93 Energy Capacity 2190 Matter Stores 1100 Matter Capacity 1400 Sight Range 25 Terrain Scan Range 20 Terrain Scan Density 10 Armor Coverage 900 Resistance: KI 40 Resistance: TH 15 Weapon Shielding 90 Phase Shifting 20 Evasion (%) 60 Targeting Accuracy 8 Core Analysis 8 Recoil Reduction 6 Kinecelleration 50 Salvage Targeting 4 Offensive Hacking 30 Defensive Hacking 14 Item Schematics ----------------- Battle Cannon | -7/Zion | Free Flamer | -7/Zion | Free Barrage Gun | -7/Zion | Free Slug Cannon | -7/Zion | Free Plasma Flamer | -7/Zion | Free Armor Integrity Analyzer | -7/Zion | Archive Adv. Terrain Scanner | -7/Zion | Archive Nuclear Pulse Thruster | -7/Zion | Archive Recalibrator | -7/Zion | Archive Matter Compressor | -7/Zion | Archive Weapon Cycler | -7/Zion | Archive Imp. Coolant Injector | -7/Zion | Archive Energy Well | -7/Zion | Archive Imp. Carbon-fiber Leg | -7/Zion | Archive Kinecellerator | -7/Zion | Archive IFF Parser | -7/Zion | Archive Adv. System Restoration Module | -7/Zion | Archive Assault Drone Bay | -4/Zhirov | Free Exp. Heat Sink | -4/Zhirov | Free Exp. Optical Array | -4/Zhirov | Free Imp. Arc Thrower | -4/Zhirov | Free Robot Schematics ------------------ B-48 Gladiator | -7/Zion | Archive T-07 Excavator | -7/Zion | Archive A-02 Transporter | -7/Zion | Archive X-82 Rainmaker | -7/Zion | Archive Fabricated ------------ Nothing Repaired ---------- Nothing Studied --------- Lgt. Treads | -7/Factory | Hacked Adv. Heavy Treads | -4/Factory | Hacked Alien Tech Used ----------------- Integrated Dissipator Transdimensional Reconstructor Achievements -------------- Chaos Is Inevitable Chaotic Teddy Bear Doshington Hackathon Out Of My Way Challenges ------------ None Game ------ Seed ColdWeaponRocket Manual? 0 Play Time 04:03:43 Cumulative 1321.6 hours Start 2026.06.22 @ 18:32:05 End 2026.06.23 @ 16:28:21 Sessions 7 Manual Loads 0 Difficulty Rogue Special Mode None Game No. 565 Rogue 564 Adventurer 1 Explorer 0 Win Type 1 Total 214 Types 65/20/32/5/2/1/78/4/4/3 Lore% 99 Gallery% 95 Achievement% 82 Wizard Run 0 Options --------- Layout 2 ASCII 0 Keyboard 1 Movement Numpad Keybinds 0 Fullscreen 0 Font 24/Terminus Map View 50x44 Zoom Use 0% Tactical HUD 1 Map Filters NONE Filters NONE Steam 1 RUN: 07442234-47db-47a4-a384-a0d769e90f71